Workbook

Sheet 2020-2025 VQ
A1: VQ 2020-2025
A2: Date facture | B2: N° facture | C2: Fournisseur | D2: Libellé facture | E2: Montant HT | F2: Montant TTC | G2: Présence I. ASSIH | H2: Montant HT ASSIH | I2: Nombre de participants | J2: Objet | K2: Observations
A3: 2020-07-29 | B3: 4-1 | C3: Café du Commerce | D3: Déjeuner de travail | E3: 28.73 | F3: 31.6 | G3: Oui | H3: =ROUND(28.73/2,2) -> 14.37 | I3: 2
A4: 2020-08-29 | B4: 014500 | C4: C.Com Café | D4: Déjeuner de travail | E4: 99.55 | F4: 108.4 | G4: Oui | H4: =ROUND(99.55/8,2) -> 12.44 | I4: 8
A5: 2020-09-17 | B5: CADM | C5: Isabelle ASSIH | D5: Remboursement - Frais de déjeuner avec M. Lesvenan le 27/07/2020 | E5: 36.7 | F5: 36.7 | G5: Oui | H5: 36.7
A6: 2020-09-25 | B6: 2 | C6: Sur Les Quais | D6: Déjeuner de travail | E6: 40.18 | F6: 44.2 | G6: Oui | H6: =ROUND(40.18/2,2) -> 20.09 | I6: 2 | J6: Projet de l'OPAC
A7: 2020-10-19 | B7: 017846 | C7: C.Com Café | D7: Déjeuner de travail | E7: 43.91 | F7: 48 | G7: Oui | H7: =ROUND(43.91/4,2) -> 10.98 | I7: 4 | J7: Déjeuner de travail avec la Maison des Associations
A8: 2020-10-09 | B8: ? | C8: Le Jardin d'Été | D8: Déjeuner de travail | E8: =ROUND(F8/1.1,2) -> 36.64 | F8: 40.3 | G8: Oui | H8: =ROUND(36.64/2,2) -> 18.32 | I8: 2 | J8: Point sur les dossiers en cours
A9: 2020-11-14 | B9: F201114172-4103 | C9: Les Jardins du Prieuré | D9: Déjeuner de travail | E9: 53.31 | F9: 58.64 | G9: Oui | H9: =ROUND(53.31/3,2) -> 17.77 | I9: 3 | J9: Point délégation
A10: 2020-11-14 | B10: F201114180-4111 | C10: Les Jardins du Prieuré | D10: Déjeuner de travail | E10: 72.27 | F10: 79.5 | G10: Oui | H10: =ROUND(72.27/3,2) -> 24.09 | I10: 3 | J10: Point organisation service espaces certs
A11: 2020-11-14 | B11: F201114175-4106 | C11: Les Jardins du Prieuré | D11: Déjeuner de travail | E11: 56.58 | F11: 62.24 | G11: Oui | H11: =ROUND(56.58/3,2) -> 18.86 | I11: 3 | J11: Point délégation
A12: 2020-11-14 | B12: F201114191-4122 | C12: Les Jardins du Prieuré | D12: Déjeuner de travail | E12: 35.6 | F12: 39.16 | G12: Oui | H12: =ROUND(35.6/2,2) -> 17.8 | I12: 2 | J12: Médiateur de la République
A13: 2020-12-03 | B13: F20120307-4357 | C13: Les Jardins du Prieuré | D13: Déjeuner de travail | E13: 53.4 | F13: 58.74 | G13: Oui | H13: =ROUND(53.4/3,2) -> 17.8 | I13: 3 | J13: Point sur les dossiers en cours
A14: 2020-12-01 | B14: F20120116-4270 | C14: Les Jardins du Prieuré | D14: Déjeuner de travail | E14: 53.4 | F14: 58.74 | G14: Oui | H14: =ROUND(53.4/3,2) -> 17.8 | I14: 3 | J14: Recrutement
A15: 2020-12-14 | B15: Pas de n° | C15: Le Globe | D15: Déjeuner de travail | E15: 46.91 | F15: 49.5 | G15: Oui | H15: =ROUND(46.91/3,2) -> 15.64 | I15: 3 | J15: Point bimensuel sur les projets en cours
A16: 2020-11-20 | B16: 1 | C16: Aloha Fresh Bowl | D16: Déjeuner de travail | E16: 40.9 | F16: =ROUND(E16*1.1,2) -> 44.99 | G16: Oui | H16: =ROUND(40.9/3,3) -> 13.633 | I16: 3 | J16: Point urbanisme | K16: 1 facture pour 3 prestations
A17: 2020-12-01 | B17: 1 | C17: Aloha Fresh Bowl | D17: Déjeuner de travail | E17: 27.28 | F17: =ROUND(E17*1.1,2) -> 30.01 | G17: Oui | H17: =ROUND(27.28/2,2) -> 13.64 | I17: 2 | J17: Point cabinet | K17: 1 facture pour 3 prestations
A18: 2020-12-17 | B18: 1 | C18: Aloha Fresh Bowl | D18: Déjeuner de travail | E18: 27.27 | F18: =ROUND(E18*1.1,2) -> 30 | G18: Oui | H18: =ROUND(27.27/2,2) -> 13.64 | I18: 2 | J18: Point cabinet | K18: 1 facture pour 3 prestations
A19: 2020-12-11 | B19: F031026081 | C19: Corpotravel | D19: Déplacement Quimper - Paris AR | E19: 218 | F19: 218.8 | G19: Oui | H19: =45+1+0.2+62+1+0.2 -> 109.4 | I19: 2 | J19: Réunion Ministère des Sports & Visite Grand Palais Éphémère
A20: 2021-08-16 | B20: F031029127 | C20: Corpotravel | D20: Déplacement à Remscheid (Allemagne) - Brest - Dusseldorf AR | E20: 1890.41 | F20: 1890.41 | G20: Oui | H20: =502.11+15 -> 517.11 | I20: 3 | J20: 50ème anniversaire du jumellage
A21: 2021-11-15 | B21: F031030874 | C21: Corpotravel | D21: Déplacement + Hébegement à Paris AR | E21: 613.32 | F21: 614.72 | G21: Oui | H21: 613.32 | I21: 1 | J21: 103ème Congrès des Maires
A22: 2021-12-03 | B22: CG212126 | C22: Association des Maires de France | D22: Participation Congrès AMF | E22: 95 | F22: 95 | G22: Oui | H22: 95 | I22: 1 | J22: 103ème Congrès des Maires
A23: 2020-12-28 | B23: F20122804-4635 | C23: Les Jardins du Prieuré | D23: Déjeuner de travail | E23: 40.34 | F23: 44.37 | G23: Oui | H23: =ROUND(40.34/2,2) -> 20.17 | I23: 2 | J23: Point avec cabinet
A24: 2021-01-20 | B24: F21012015-5110 | C24: Les Jardins du Prieuré | D24: Déjeuner de travail | E24: 136.02 | F24: 149.62 | G24: Oui | H24: =ROUND(136.02/6,2) -> 22.67 | I24: 6 | J24: Point sur les mairies de quartier
A25: 2021-01-12 | B25: F21011215-4939 | C25: Les Jardins du Prieuré | D25: Déjeuner de travail | E25: 79.08 | F25: 86.99 | G25: Oui | H25: =ROUND(79.08/4,2) -> 19.77 | I25: 4 | J25: Prise de contact nouveau DGS
A26: 2021-02-01 | B26: F000287 | C26: L'Atelier des Gourmets | D26: Déjeuner de travail | E26: 130.88 | F26: 143.97 | G26: Oui | H26: =ROUND(130.88/8,2) -> 16.36 | I26: 8 | J26: Validation ordre du jour bureau municipal
A27: 2021-02-09 | B27: F000295 | C27: L'Atelier des Gourmets | D27: Déjeuner de travail | E27: 49.08 | F27: 53.99 | G27: Oui | H27: =ROUND(49.08/3,2) -> 16.36 | I27: 3 | J27: Point cabinet
A28: 2021-02-09 | B28: F000294 | C28: L'Atelier des Gourmets | D28: Déjeuner de travail | E28: 98.16 | F28: 107.98 | G28: Oui | H28: =ROUND(98.16/6,2) -> 16.36 | I28: 6 | J28: Manager du centre ville
A29: 2021-01-07 | B29: 2 | C29: Aloha Fresh Bowl | D29: Déjeuner de travail | E29: 16.64 | F29: =ROUND(E29*1.1,2) -> 18.3 | G29: Oui | H29: 13.64 | I29: 1 | J29: Point administration générale | K29: 1 facture pour 4 prestations
A30: 2021-01-28 | B30: 2 | C30: Aloha Fresh Bowl | D30: Déjeuner de travail | E30: 27.27 | F30: 30 | G30: Oui | H30: =ROUND(27.27/2,2) -> 13.64 | I30: 2 | J30: Point avant signature avenant convention cœur de ville | K30: 1 facture pour 4 prestations
A31: 2021-02-02 | B31: 2 | C31: Aloha Fresh Bowl | D31: Déjeuner de travail | E31: 27.27 | F31: 30 | G31: Oui | H31: =ROUND(27.27/2,2) -> 13.64 | I31: 2 | J31: Point avant Conseil municipal | K31: 1 facture pour 4 prestations
A32: 2021-02-10 | B32: 2 | C32: Aloha Fresh Bowl | D32: Déjeuner de travail | E32: 13.64 | F32: 15 | G32: Oui | H32: 13.64 | I32: 1 | J32: Logement sociaux / Aiguillons | K32: 1 facture pour 4 prestations
A33: 2021-02-25 | B33: F21022556-5745 | C33: Les Jardins du Prieuré | D33: Déjeuner de travail | E33: 47.4 | F33: 52.14 | G33: Oui | H33: =ROUND(47.4/3,2) -> 15.8 | I33: 3 | J33: Passage au 1 607heures
A34: 2020-11-21 | B34: F20112185-4231 | C34: Les Jardins du Prieuré | D34: Déjeuner de travail | E34: 53.4 | F34: 58.74 | G34: Oui | H34: =ROUND(53.4/3,2) -> 17.8 | I34: 3 | J34: Point cabinet
A35: 2021-03-08 | B35: MECC-FC2-2103-000018 | C35: Ravalec Traiteur | D35: Déjeuner de travail | E35: 49.2 | F35: 54.12 | G35: Oui | H35: =ROUND(49.2/3,2) -> 16.4 | I35: 3 | J35: Point cabinet
A36: 2021-02-22 | B36: MECC-FC2-2102-000098 | C36: Ravalec Traiteur | D36: Déjeuner de travail | E36: 42.6 | F36: 46.86 | G36: Oui | H36: =ROUND(42.6/3,2) -> 14.2 | I36: 3 | J36: Point cabinet
A37: 2021-03-29 | B37: F21032917-6318 | C37: Les Jardins du Prieuré | D37: Déjeuner de travail | E37: 53.4 | F37: 58.74 | G37: Oui | H37: =ROUND(53.4/3,2) -> 17.8 | I37: 3 | J37: Réunion CMA Michel Gueguen
A38: 2021-04-12 | B38: F000354 | C38: L'Atelier des Gourmets | D38: Déjeuner de travail | E38: 65.44 | F38: 71.98 | G38: Oui | H38: =ROUND(65.44/3,2) -> 21.81 | I38: 3 | J38: Dossier les Halles
A39: 2021-04-19 | B39: F000364 | C39: L'Atelier des Gourmets | D39: Déjeuner de travail | E39: 49.08 | F39: 53.99 | G39: Oui | H39: =ROUND(49.08/3,2) -> 16.36 | I39: 3 | J39: Point cabinet
A40: 2021-01-23 | B40: F21012311 | C40: Kemper Gastronomie | D40: Déjeuner de travail | E40: 54.56 | F40: 60.02 | G40: Oui | H40: =ROUND(54.56/4,2) -> 13.64 | I40: 4 | J40: Validation ordre du jour bureau municipal
A41: 2021-06-04 | B41: 1 | C41: La Pépinière | D41: Déjeuner de travail | E41: 32.09 | F41: 35.3 | G41: Oui | H41: =ROUND(32.09/2,2) -> 16.05 | I41: 2 | J41: Dossier urbanisme
A42: 2021-04-09 | B42: 21/4 | C42: Aloha Fresh Bowl | D42: Déjeuner de travail | E42: 13.64 | F42: =ROUND(E42*1.1,2) -> 15 | G42: Oui | H42: 13.64 | I42: 1 | J42: Préparation réunion Halle | K42: 1 facture pour 4 prestations
A43: 2021-04-01 | B43: 21/4 | C43: Aloha Fresh Bowl | D43: Déjeuner de travail | E43: 13.64 | F43: 15 | G43: Oui | H43: 13.64 | I43: 1 | J43: Préparation dossier travaux PEM | K43: 1 facture pour 4 prestations
A44: 2021-03-26 | B44: 21/4 | C44: Aloha Fresh Bowl | D44: Déjeuner de travail | E44: 95.48 | F44: 105.03 | G44: Oui | H44: =ROUND(95.48/7,2) -> 13.64 | I44: 7 | J44: Réunion présidents commission ville | K44: 1 facture pour 4 prestations
A45: 2021-03-23 | B45: 21/4 | C45: Aloha Fresh Bowl | D45: Déjeuner de travail | E45: 13.6 | F45: 14.96 | G45: Oui | H45: 13.6 | I45: 1 | J45: Préparation conseil municipal | K45: 1 facture pour 4 prestations
A46: 2021-06-10 | B46: F21061042-7501 | C46: Les Jardins du Prieuré | D46: Déjeuner de travail | E46: 53.4 | F46: 58.74 | G46: Oui | H46: =ROUND(53.4/3,2) -> 17.8 | I46: 3 | J46: Point cabinet
A47: 2021-06-22 | B47: F21062218-7543 | C47: Les Jardins du Prieuré | D47: Déjeuner de travail | E47: 71.2 | F47: 78.32 | G47: Oui | H47: =ROUND(71.2/4,2) -> 17.8 | I47: 4 | J47: Réunion de direction
A48: 2021-06-14 | B48: 118012 | C48: LE XXI | D48: Déjeuner de travail | E48: 42.09 | F48: 46.3 | G48: Oui | H48: =ROUND(42.09/3,2) -> 14.03 | I48: 3
A49: 2021-06-25 | B49: F21062559-7650 | C49: Les Jardins du Prieuré | D49: Déjeuner de travail | E49: 35.6 | F49: 39.16 | G49: Oui | H49: =ROUND(35.6/2,2) -> 17.8 | I49: 2 | J49: Point délégation
A50: 2021-07-15 | B50: F21071527-7794 | C50: Les Jardins du Prieuré | D50: Déjeuner de travail | E50: 90.8 | F50: 99.88 | G50: Oui | H50: =ROUND(90.8/4,2) -> 22.7 | I50: 4 | J50: Point avec l'ARS (Agence Régionale de Santé)
A51: 2021-01-15 | B51: F21011501 | C51: Kemper Gastronomie | D51: Déjeuner de travail | E51: 163.68 | F51: 180.05 | G51: Oui | H51: =ROUND(163.68/12,2) -> 13.64 | I51: 12 | J51: Vœux communs avec la Région Bretagne
A52: 2021-03-19 | B52: F21031903 | C52: Kemper Gastronomie | D52: Déjeuner de travail | E52: 45 | F52: 49.5 | G52: Oui | H52: =ROUND(45/3,2) -> 15 | I52: 3 | J52: Déjeuner de travail avec la chambre des métiers
A53: 2021-03-11 | B53: F21031103 | C53: Kemper Gastronomie | D53: Déjeuner de travail | E53: 60 | F53: 66 | G53: Oui | H53: =ROUND(60/4,2) -> 15 | I53: 4 | J53: Préparation commission extra municipales
A54: 2021-08-30 | B54: F21083008 | C54: Kemper Gastronomie | D54: Déjeuner de travail | E54: 63.64 | F54: 70 | G54: Oui | H54: =ROUND(63.64/4,2) -> 15.91 | I54: 4 | J54: Projets culturels
A55: 2021-06-25 | B55: 25062021 | C55: Copper J | D55: Déjeuner de travail | E55: 40.91 | F55: 45 | G55: Oui | H55: =ROUND(45/2,2) -> 22.5 | I55: 2 | J55: Point urbanisme ville de Quimper
A56: 2021-09-23 | B56: FC-21-2309 | C56: Côté Bistro | D56: Déjeuner de travail | E56: 312.04 | F56: 353.9 | G56: Oui | H56: =ROUND(312.04/8,2) -> 39.01 | I56: 5 | J56: 50 ans jumellage Quimper - Remscheid
A57: 2021-09-27 | B57: FC-21-2709 | C57: Côté Bistro | D57: Déjeuner de travail | E57: 53.9 | F57: 60.5 | G57: Oui | H57: =ROUND(53.9/2,2) -> 26.95 | I57: 2 | J57: Réunion QCD
A58: 2021-10-27 | B58: MECC-FC2-2109-000100 | C58: Ravalec Traiteur | D58: Déjeuner de travail | E58: 28.4 | F58: 31.24 | G58: Oui | H58: =ROUND(28.4/2,2) -> 14.2 | I58: 2 | J58: Point délégation pilotage politiques publiques
A59: 2021-10-13 | B59: F21101319-8366 | C59: Les Jardins du Prieuré | D59: Déjeuner de travail | E59: 51.3 | F59: 56.43 | G59: Oui | H59: =ROUND(51.3/3,2) -> 17.1 | I59: 3 | J59: Conférence des maires à Edern
A60: 2021-10-12 | B60: F21101216-8317 | C60: Les Jardins du Prieuré | D60: Déjeuner de travail | E60: 51.3 | F60: 56.43 | G60: Oui | H60: =ROUND(51.3/3,2) -> 17.1 | I60: 3 | J60: Validation ordre du jour Bureau communautaire
A61: 2021-09-13 | B61: F21091306 | C61: Kemper Gastronomie | D61: Déjeuner de travail | E61: 60 | F61: 66 | G61: Oui | H61: =ROUND(60/4,2) -> 15 | I61: 4 | J61: déjeuner DRH sur les 1607 h
A62: 2021-11-09 | B62: F21110902-8621 | C62: Les Jardins du Prieuré | D62: Déjeuner de travail | E62: 53.4 | F62: 58.74 | G62: Oui | H62: =ROUND(53.4/3,2) -> 17.8 | I62: 3 | J62: Convention annuelle projet communautaire
A63: 2021-11-09 | B63: F21110904-8623 | C63: Les Jardins du Prieuré | D63: Déjeuner de travail | E63: 106.8 | F63: 117.48 | G63: Oui | H63: =ROUND(106.8/6,2) -> 17.8 | I63: 6 | J63: Convention annuelle projet communautaire
A64: 2021-11-09 | B64: F21110910-8629 | C64: Les Jardins du Prieuré | D64: Déjeuner de travail | E64: 65 | F64: 71.5 | G64: Oui | H64: =ROUND(65/4,2) -> 16.25 | I64: 4 | J64: Convention annuelle projet communautaire
A65: 2021-02-05 | B65: F21020516-5366 | C65: Les Jardins du Prieuré | D65: Déjeuner de travail | E65: 42.73 | F65: 47 | G65: Oui | H65: =ROUND(42.73/2,2) -> 21.37 | I65: 2 | J65: Rencontre pré conseil municipal
A66: 2022-11-10 | B66: F031038845 | C66: Corpotravel | D66: Déplacement + Hébergement Quimper - Paris AR | E66: 883.38 | F66: 884.78 | G66: Oui | H66: 883.38 | I66: 1 | J66: Salon des maires
A67: 2022-11-23 | B67: F031039155 | C67: Corpotravel | D67: Déplacement + Hébergement Quimper - Paris R | E67: 75 | F67: 75.2 | G67: Oui | H67: 75 | I67: 1 | J67: Salon des maires
A68: 2022-11-23 | B68: A031009332 | C68: Corpotravel | D68: Annulation : Déplacement + Hébergement Quimper - Paris R | E68: -80 | F68: -80 | G68: Oui | H68: -80 | I68: 1 | J68: Salon des maires
A69: 2022-12-08 | B69: CG222172 | C69: Association des Maires de France | D69: Participation Congrès AMF | E69: 570 | F69: 570 | G69: Oui | H69: =ROUND(570/6,2) -> 95 | I69: 6 | J69: 104ème Congrès des Maires
A70: 2021-12-17 | B70: 80708 | C70: Sur Les Quais | D70: Déjeuner de travail | E70: 55.27 | F70: 60.8 | G70: Oui | H70: =ROUND(55.27/3,2) -> 18.42 | I70: 3 | J70: Point projet ville
A71: 2021-03-16 | B71: 6 | C71: Aloha Fresh Bowl | D71: Déjeuner de travail | E71: 14.45 | F71: =ROUND(E71*1.1,2) -> 15.9 | G71: Oui | H71: 14.45 | I71: 1 | K71: 1 facture pour 9 prestations
A72: 2021-03-26 | B72: 6 | C72: Aloha Fresh Bowl | D72: Déjeuner de travail | E72: 101.15 | F72: 111.27 | G72: Oui | H72: =ROUND(101.15/7,2) -> 14.45 | I72: 7 | K72: 1 facture pour 9 prestations
A73: 2021-09-07 | B73: 6 | C73: Aloha Fresh Bowl | D73: Déjeuner de travail | E73: 14.45 | F73: 15.9 | G73: Oui | H73: 14.45 | I73: 1 | K73: 1 facture pour 9 prestations
A74: 2021-09-21 | B74: 6 | C74: Aloha Fresh Bowl | D74: Déjeuner de travail | E74: 14.45 | F74: 15.9 | G74: Oui | H74: 14.45 | I74: 1 | K74: 1 facture pour 9 prestations
A75: 2021-10-15 | B75: 6 | C75: Aloha Fresh Bowl | D75: Déjeuner de travail | E75: 14.45 | F75: 15.9 | G75: Oui | H75: 14.45 | I75: 1 | K75: 1 facture pour 9 prestations
A76: 2021-11-09 | B76: 6 | C76: Aloha Fresh Bowl | D76: Déjeuner de travail | E76: 12.64 | F76: 13.9 | G76: Oui | H76: 12.64 | I76: 1 | K76: 1 facture pour 9 prestations
A77: 2021-11-23 | B77: 6 | C77: Aloha Fresh Bowl | D77: Déjeuner de travail | E77: 12.64 | F77: 13.9 | G77: Oui | H77: 12.64 | I77: 1 | K77: 1 facture pour 9 prestations
A78: 2022-01-14 | B78: 6 | C78: Aloha Fresh Bowl | D78: Déjeuner de travail | E78: 50.56 | F78: 55.62 | G78: Oui | H78: =ROUND(50.56/4,2) -> 12.64 | I78: 4 | K78: 1 facture pour 9 prestations
A79: 2022-01-21 | B79: 6 | C79: Aloha Fresh Bowl | D79: Déjeuner de travail | E79: 37.95 | F79: 41.75 | G79: Oui | H79: =ROUND(37.95/3,2) -> 12.65 | I79: 3 | K79: 1 facture pour 9 prestations
A80: 2022-03-11 | B80: 11032022 | C80: La Mie Câline | D80: Déjeuner de travail | E80: 8.33 | F80: 9.05 | G80: Oui | H80: 8.33 | I80: 1
A81: 2022-02-28 | B81: 28022022 | C81: La Mie Câline | D81: Déjeuner de travail | E81: 8.33 | F81: 9.05 | G81: Oui | H81: 8.33 | I81: 1
A82: 2022-06-13 | B82: F22061343-10135 | C82: Les Jardins du Prieuré | D82: Déjeuner de travail | E82: 71.1 | F82: 78.21 | G82: Oui | H82: =ROUND(71.1/3,2) -> 23.7 | I82: 3 | J82: Plateaux repas point administration générale
A83: 2022-10-10 | B83: F221010100-11034 | C83: Les Jardins du Prieuré | D83: Déjeuner de travail | E83: 37.6 | F83: 41.36 | G83: Oui | H83: =ROUND(37.6/2,2) -> 18.8 | I83: 2 | J83: Plateaux repas préparation BM
A84: 2022-10-11 | B84: CC-FC21-2210-0000001 | C84: Maison Jain | D84: Salades + Pâtisseries | E84: 162.95 | F84: 163.31 | G84: Oui | H84: =ROUND(162.95/15,2) -> 10.86 | I84: 15 | J84: Préparation réunion publique de Penhars
A85: 2022-10-05 | B85: 64190 | C85: Gungor | D85: Déjeuner de travail | E85: 213.61 | F85: 228.5 | G85: Oui | H85: =ROUND(213.61/16,2) -> 13.35 | I85: 16 | J85: Diner réunion de quartier
A86: 2022-05-31 | B86: 31052022 | C86: La Mie Câline | D86: Déjeuner de travail | E86: 36.22 | F86: 39 | G86: Oui | H86: =ROUND(36.22/5,2) -> 7.24 | I86: 5 | J86: Point dossiers cabinet
A87: 2022-11-08 | B87: F22110805-11267 | C87: Les Jardins du Prieuré | D87: Déjeuner de travail | E87: 75.2 | F87: 82.72 | G87: Oui | H87: =ROUND(75.2/4,2) -> 18.8 | I87: 4 | J87: Échange élus bureau municipal
A88: 2022-11-08 | B88: F22110806-11268 | C88: Les Jardins du Prieuré | D88: Déjeuner de travail | E88: 56.4 | F88: 62.04 | G88: Oui | H88: =ROUND(56.4/3,2) -> 18.8 | I88: 3 | J88: Êchange élus bureau municipal
A89: 2022-11-08 | B89: F22110807-11269 | C89: Les Jardins du Prieuré | D89: Déjeuner de travail | E89: 75.2 | F89: 82.72 | G89: Oui | H89: =ROUND(75.2/4,2) -> 18.8 | I89: 4 | J89: Êchange élus bureau municipal
A90: 2022-12-01 | B90: FC-22-0112 | C90: Côté Bistro | D90: Déjeuner de travail | E90: 137.48 | F90: 152.8 | G90: Oui | H90: =ROUND(137.48/5,2) -> 27.5 | I90: 5 | J90: Les halles de Quimper
A91: 2022-05-20 | B91: 007774 | C91: Copper J | D91: Déjeuner de travail | E91: =184.36+6.67 -> 191.03 | F91: 210.8 | G91: Oui | H91: =ROUND(191.03/10,2) -> 19.1 | I91: 10 | J91: Grands projets Ville & Agglo : Rénovation théâtre Max jacob + PEM / site Eau Blanche
A92: 2022-11-28 | B92: ? | C92: Copper J | D92: Déjeuner de travail | E92: =67+26.67 -> 93.67 | F92: 105.7 | G92: Oui | H92: =ROUND(93.67/3,2) -> 31.22 | I92: 3 | J92: École de Broderie
A93: 2022-12-19 | B93: F22121985-11724 | C93: Les Jardins du Prieuré | D93: Déjeuner de travail | E93: 36.2 | F93: 39.82 | G93: Oui | H93: =ROUND(36.2/2,2) -> 18.1 | I93: 2 | J93: Point dossier en cours - Pilotage des politiques publiques
A94: 2022-12-19 | B94: F22121989-11728 | C94: Les Jardins du Prieuré | D94: Déjeuner de travail | E94: 54.3 | F94: 59.73 | G94: Oui | H94: =ROUND(54.3/3,2) -> 18.1 | I94: 3 | J94: Échange élus bureau communautaire
A95: 2022-12-20 | B95: F22122001-11731 | C95: Les Jardins du Prieuré | D95: Déjeuner de travail | E95: 56.4 | F95: 62.04 | G95: Oui | H95: =ROUND(56.4/3,2) -> 18.8 | I95: 3 | J95: Échange élus bureau communautaire
A96: 2022-09-27 | B96: 1078641 | C96: Amzer Zo | D96: Déjeuner de travail | E96: 160.94 | F96: 178.7 | G96: Oui | H96: =ROUND(160.94/9,2) -> 17.88 | I96: 9 | J96: Rencontre des quartiers : Kerfeunteun
A97: 2023-01-16 | B97: F23011604-11955 | C97: Les Jardins du Prieuré | D97: Déjeuner de travail | E97: 122.8 | F97: 136.08 | G97: Oui | H97: =ROUND(122.8/6,2) -> 20.47 | I97: 6 | J97: Échange rue Haute & secteur Châteaubriand
A98: 2022-11-03 | B98: 11032022 | C98: La Mie Câline | D98: Déjeuner de travail | E98: 8.33 | F98: 9.05 | G98: Oui | H98: 8.33 | I98: 1 | J98: Déjeuner Maire après cérémonie du 11/03/2022 et avant homage victimes du terrorisme
A99: 2023-02-16 | B99: F230216120-12288 | C99: Les Jardins du Prieuré | D99: Déjeuner de travail | E99: 160.4 | F99: 177.44 | G99: Oui | H99: =ROUND(160.4/8,2) -> 20.05 | I99: 8 | J99: Réunion DRAC
A100: 2022-10-20 | B100: 70458-2 | C100: Le Vin dans les Voiles | D100: Déjeuner de travail | E100: 181.83 | F100: 204.4 | G100: Oui | H100: =ROUND(181.83/15,2) -> 12.12 | I100: 15 | J100: Réunion publique centre ville à l'auditorium de la médiathèque Alain Gérard
A101: 2023-03-13 | B101: F23031314-12493 | C101: Les Jardins du Prieuré | D101: Déjeuner de travail | E101: 122.8 | F101: 136.08 | G101: Oui | H101: =ROUND(122.8/6,2) -> 20.47 | I101: 6 | J101: Discussion autour du site de Rozmaria
A102: 2023-03-13 | B102: F23031312-12491 | C102: Les Jardins du Prieuré | D102: Déjeuner de travail | E102: 104 | F102: 115.4 | G102: Oui | H102: =ROUND(104/5,2) -> 20.8 | I102: 5 | J102: Arbitrage budgétaire
A103: 2023-04-17 | B103: F23041702-12720 | C103: Les Jardins du Prieuré | D103: Déjeuner de travail | E103: 66.4 | F103: 74.4 | G103: Oui | H103: =ROUND(66.4/3,2) -> 22.13 | I103: 3 | J103: Validation ordre du jour Bureau Municipal
A104: 2023-04-17 | B104: F23041705-12723 | C104: Les Jardins du Prieuré | D104: Déjeuner de travail | E104: 54.3 | F104: 59.73 | G104: Oui | H104: =ROUND(54.3/3,2) -> 18.1 | I104: 3 | J104: Réunion de direction de la Ville de Quimper
A105: 2023-04-17 | B105: F23041723-12741 | C105: Les Jardins du Prieuré | D105: Déjeuner de travail | E105: 60.4 | F105: 67.44 | G105: Oui | H105: =ROUND(60.4/3,2) -> 20.13 | I105: 3 | J105: Solidarité & Handicap
A106: 2023-04-17 | B106: F23041707-12725 | C106: Les Jardins du Prieuré | D106: Déjeuner de travail | E106: 57.4 | F106: 64.14 | G106: Oui | H106: =ROUND(57.4/2,2) -> 28.7 | I106: 2 | J106: Préparation Conseil de Surveillance & Union Hospitalière de Cornouaille
A107: 2023-05-19 | B107: F23051910-12996 | C107: Les Jardins du Prieuré | D107: Déjeuner de travail | E107: 66.4 | F107: 74.04 | G107: Oui | H107: =ROUND(66.4/3,2) -> 22.13 | I107: 3 | J107: Échange entre élus sur l'actualité
A108: 2023-04-03 | B108: F23040301 | C108: Kemper Gastronomie | D108: Déjeuner de travail | E108: 44 | F108: 48.4 | G108: Oui | H108: =ROUND(44/2,2) -> 22 | I108: 2 | J108: Projet Flaubert
A109: 2023-05-19 | B109: F32051907-12993 | C109: Les Jardins du Prieuré | D109: Déjeuner de travail | E109: 66.4 | F109: 74.04 | G109: Oui | H109: =ROUND(66.4/3,2) -> 22.13 | I109: 3 | J109: Étude des dossiers en cours
A110: 2023-06-12 | B110: F23061269-13218 | C110: Les Jardins du Prieuré | D110: Déjeuner de travail | E110: 100.5 | F110: 111.55 | G110: Oui | H110: 20.1 | I110: 5 | J110: Point Cabinet - Dossiers à venir
A111: 2023-06-12 | B111: F23061277-13226 | C111: Les Jardins du Prieuré | D111: Déjeuner de la Maire | E111: 28.1 | F111: 31.91 | G111: Oui | H111: 28.1 | I111: 1 | J111: Déjeuner de la Maire
A112: 2023-06-13 | B112: F23061304-13237 | C112: Les Jardins du Prieuré | D112: Déjeuner de travail | E112: 66.4 | F112: 74.04 | G112: Oui | H112: 22.13 | I112: 3 | J112: Point finances ville
A113: 2023-06-16 | B113: 001 | C113: L'Identité | D113: Déjeuner de terrain | E113: 101.11 | F113: 113.3 | G113: Oui | H113: 25.28 | I113: 4 | J113: Visite de Quartier de la Maire
A114: 2023-06-26 | B114: MECC-FC2-2306-000196 | C114: Ravalec Traiteur | D114: 4*Déjeuners de travail | E114: 597.5 | F114: 657.225 | G114: Oui | H114: 75.3 | I114: =4+7+12+1+12+2+1 -> 39 | J114: 4*Déjeuners de travail Point démocratie participative Projet Compagnie LE DOARE Projets Festivités de fin d'année Comité des Caisses des écoles (sans I. ASSIH)
A115: 2023-07-04 | B115: sans objet | C115: Isabelle ASSIH | D115: Remboursement frais de mission (essence + péage + repas) Déplacement à Paris - Rencontre avec les Maires des communes touchées par les violences urbaines du 04/07/2023 | E115: 208.31 | F115: 208.31 | G115: Oui | H115: 208.31 | I115: 1 | J115: Déplacement à Paris - Rencontre avec les Maires des communes touchées par les violences urbaines du 04/07/2023 Frais de mission (essence + péage + repas)
A116: 2023-07-12 | B116: F23071278-13479 | C116: Les Jardins du Prieuré | D116: Déjeuner de travail | E116: 64.3 | F116: 71.73 | G116: Oui | H116: 21.43 | I116: 3 | J116: Échanges écoles primaires & maternelles
A117: 2023-07-12 | B117: F23071293-13494 | C117: Les Jardins du Prieuré | D117: Déjeuner de travail | E117: 47.6 | F117: 53.36 | G117: Oui | H117: 23.8 | I117: 2 | J117: Point Cabinet / Agenda Maire
A118: 2023-07-19 | B118: 002 | C118: L'Identité | D118: Déjeuner de travail | E118: 44.81 | F118: 49.3 | G118: Oui | H118: 22.41 | I118: 2 | J118: Point nouveautés rentrée scolaire
A119: 2023-07-24 | B119: F23072430-13647 | C119: Les Jardins du Prieuré | D119: Déjeuner de travail | E119: 82.4 | F119: 91.64 | G119: Oui | H119: 20.6 | I119: 4 | J119: Échanges élu.e.s Bureau Municipal
A120: 2023-07-25 | B120: F23072508-13656 | C120: Les Jardins du Prieuré | D120: Déjeuner de travail | E120: 36.2 | F120: 39.82 | G120: Oui | H120: 18.1 | I120: 2 | J120: Échanges ARS (Agence Réginonale de Santé)
A121: 2023-09-18 | B121: MECC-FC2-2309-000073 | C121: Ravalec Traiteur | D121: Déjeuner de travail | E121: 81 | F121: 89.1 | G121: Oui | H121: 16.2 | I121: 5 | J121: Échange entre élu.e.s du Conseil Municipal sur les dossiers en cours de la ville de Quimper
A122: 2023-09-26 | B122: 003 | C122: L'Identité | D122: Déjeuner de travail | E122: 118.89 | F122: 131.9 | G122: Oui | H122: 23.78 | I122: 5 | J122: Novomax
A123: 2023-10-09 | B123: MECC-FC2-2310-000036 | C123: Ravalec Traiteur | D123: 2*Déjeuners de travail | E123: 97.4 | F123: 107.14 | G123: Oui | H123: 48.90909091 | I123: 6 | J123: 2*Déjeuners de travail : 2*Points dossiers ville
A124: 2023-10-20 | B124: F23102027-14273 | C124: Les Jardins du Prieuré | D124: Déjeuner de travail | E124: 100.5 | F124: 111.55 | G124: Oui | I124: 5 | J124: Déjeuner de travail - Point dossiers
A125: 2023-10-30 | C125: Corpotravel | D125: Déplacement à Paris (train + hôtel) | E125: 764 | F125: 765.4 | G125: Oui | H125: 764 | I125: 1 | J125: Déplacement à Paris (train + hôtel) : Congrès des Maires
A126: 2023-11-17 | B126: F23120826-14731 | C126: Les Jardins du Prieuré | D126: Déjeuner de travail | E126: 47.6 | F126: 23.36 | G126: Oui | H126: 23.8 | I126: 2 | J126: Point Cabinet / Maire
A127: 2023-11-23 | B127: F23120882-14787 | C127: Les Jardins du Prieuré | D127: Déjeuner de travail | E127: 64.3 | F127: 71.73 | G127: Oui | H127: 21.43 | I127: 3 | J127: Validation ordre du jour Bureau Municipal
A128: 2023-11-27 | B128: F23120883-14788 | C128: Les Jardins du Prieuré | D128: Déjeuner de travail | E128: 104 | F128: 115.4 | G128: Oui | H128: 20.8 | I128: 5 | J128: Déjeuner Cabinet - Dossier Bureau Municipal
A129: 2023-11-30 | B129: MECC-FC2-2311-000131 | C129: Ravalec Traiteur | D129: 5*Déjeuners de travail | E129: 238.8 | F129: 262.68 | G129: Oui | H129: 76.72727273 | I129: =3+2+5+2+2 -> 14 | J129: 5*Déjeuners de travail Points entre élu.e.s du Bureau Municipal Projet site des Bruyères
A130: 2023-12-18 | B130: CG232066 | C130: Association des Maires de France | D130: Congrès des Maires de France | E130: 285 | F130: 285 | G130: Oui | H130: 95 | I130: 3 | J130: Participation au 105ème Congrès de s Maires de France
A131: 2023-12-31 | B131: 20231235 | C131: Chez Max | D131: Déjeuner Roller Dance avec P. Candeloro | E131: 155.12 | F131: 172.8 | G131: Oui | H131: 25.85333333 | I131: 6 | J131: Déjeuner du 20/12/2023 dans le cadre de l'exploitation de la piste de roller dance
A132: 2023-01-12 | B132: F24011248-15026 | C132: Les Jardins du Prieuré | D132: Déjeuner de travail | E132: 47.6 | F132: 53.36 | G132: Oui | H132: 23.8 | I132: 2 | J132: Point dossiers à venir
A133: 2024-01-12 | B133: F24011249-15027 | C133: Les Jardins du Prieuré | D133: Déjeuner de travail | E133: 47.6 | F133: 53.36 | G133: Oui | H133: 23.8 | I133: 2 | J133: Point Cabinet
A134: 2024-01-30 | B134: 94997596000111 | C134: 1 rue Toul al Laer | D134: Déjeuner de travail | E134: 45.91 | F134: 50.5 | G134: Oui | H134: 22.95 | I134: 2 | J134: Point Avec Directrice DRAC
A135: 2024-02-09 | B135: F24020909-15453 | C135: Les Jardins du Prieuré | D135: Déjeuner de travail | E135: 64.3 | F135: 71.73 | G135: Oui | H135: 21.43 | I135: 3 | J135: Point dossier culture
A136: 2024-02-12 | B136: F24021212-15476 | C136: Les Jardins du Prieuré | D136: Déjeuner de travail | E136: 64.3 | F136: 71.73 | G136: Oui | H136: 21.43 | I136: 3 | J136: Validation ordre du jour Bureau Municipal
A137: 2024-02-12 | B137: F24021215-15479 | C137: Les Jardins du Prieuré | D137: Déjeuner de travail | E137: 179.2 | F137: 198.12 | G137: Oui | H137: 19.91 | I137: 9 | J137: Point sur les dossiers à venir
A138: 2024-02-12 | B138: F24021224-15488 | C138: Les Jardins du Prieuré | D138: Déjeuner de travail | E138: 71.5 | F138: 79.65 | G138: Oui | H138: 23.83 | I138: 3 | J138: Point sur les dossiers en cours
A139: 2024-03-18 | B139: 0001 | C139: M&S | D139: Déjeuner de travail | E139: 58.82 | F139: 64.7 | G139: Oui | H139: 19.6 | I139: 3 | J139: Projets urbins
A140: 2024-03-08 | B140: F24030817-15800 | C140: Les Jardins du Prieuré | D140: Déjeuner de travail | E140: 85.2 | F140: 94.72 | G140: Oui | H140: 21.3 | I140: 4 | J140: Échanges sur des dossiers CCAS
A141: 2024-03-15 | B141: MECC-FC2-2403-000036 | C141: Ravalec Traiteur | D141: Déjeuner de travail | E141: 33.8 | F141: 37.18 | G141: Oui | H141: 16.9 | I141: 2 | J141: Point dossier en cours (ASSIH + GUYADER)
A142: 2024-04-04 | B142: 93 | C142: Hatoup/ Le Labo | D142: Déjeuner de travail | E142: 96.21 | F142: 101.5 | G142: Oui | H142: 41.23 | I142: 2 | J142: 3 Points Cabinet (16&29/02 +29/03)
A143: 2024-04-30 | B143: MECC-FC2-2404-000043 | C143: Ravalec Traiteur | D143: Déjeuner de travail | E143: 107.4 | F143: 118.14 | G143: Oui | H143: 53.7 | I143: 2 | J143: 3 Points Cabinet (11&19/04 +03/05)
A144: 2024-05-01 | B144: 101 | C144: Hatoup/ Le Labo | D144: Déjeuner de travail | E144: 91.94 | F144: 97 | G144: Oui | H144: 65.67 | I144: 2 | J144: 3Déjeuner de travail -2 Point cabinet (4&29/04)
A145: 2024-05-14 | B145: F24051454-16296 | C145: Les Jardins du Prieuré | D145: Déjeuner de travail | E145: 166 | F145: 183.6 | G145: Oui | H145: 20.75 | I145: 8 | J145: Rencontre conseil départemental&VQ
A146: 2024-05-14 | B146: F24051449-16291 | C146: Les Jardins du Prieuré | D146: Déjeuner de travail | E146: 107.5 | F146: 119.25 | G146: Oui | H146: 21.5 | I146: 5 | J146: Point Cabinet
A147: 2024-05-13 | B147: MECC-FC2-2405-000028 | C147: Ravalec Traiteur | D147: Déjeuner de travail | E147: 34.8 | F147: 38.28 | G147: Oui | H147: 17.4 | I147: 2 | J147: Point CCAS
A148: 2024-06-01 | B148: 121 | C148: Hatoup/ Le Labo | D148: Déjeuner de travail | E148: 122.27 | F148: 129 | G148: Oui | H148: 84.84 | I148: 2 | J148: 3 Points Cabinet (17&24/04&31/05)+3 dejeuners
A149: 2024-05-02 | B149: 0010534 | C149: Les Jardins du Prieuré | D149: Déjeuner de travail | E149: 48.63 | F149: 53.5 | G149: Oui | H149: 45.63 | I149: 2 | J149: dejeuner de travail + 1 café avec Dir BELIERS
A150: 2024-05-06 | B150: 0010620 | C150: Les Jardins du Prieuré | D150: Déjeuner de travail | E150: 62.92 | F150: 70.3 | G150: Oui | H150: 31.46 | I150: 2 | J150: theme dejeuner : Commerces VQ avec adjointe au commerce
A151: 2024-05-10 | B151: F24061231-16534 | C151: Les Jardins du Prieuré | D151: Déjeuner de travail | E151: 49 | F151: 54.9 | G151: Oui | H151: 24.05 | I151: 2 | J151: Point Cabinet du 10/05
A152: 2024-06-12 | B152: F24061231-16534 | C152: Les Jardins du Prieuré | D152: Déjeuner de travail | E152: 169.2 | F152: 187.12 | G152: Oui | H152: 21.15 | I152: 8 | J152: Festival de Cornouaille
A153: 2024-06-27 | B153: F24062701-16603 | C153: Les Jardins du Prieuré | D153: Déjeuner de travail | E153: 49 | F153: 54.9 | G153: Oui | H153: 24.5 | I153: 2 | J153: Point Cabinet du 03/06
A154: 2024-07-04 | B154: 127 | C154: Hatoup/ Le Labo | D154: Déjeuner de travail | E154: 284 | F154: 301.5 | G154: Oui | H154: 149 | I154: 4 | J154: 4 Points Cabinet juin+dejeuners travail
A155: 2024-07-10 | B155: MECC-FC-2407-000037 | C155: Ravalec Traiteur | D155: Déjeuner de travail | E155: 59.7 | F155: 65.67 | G155: Oui | H155: 19.9 | I155: 3 | J155: Point Direction
A156: 2024-07-01 | B156: MECC-FC-2407-000020 | C156: Ravalec Traiteur | D156: Déjeuner de travail | E156: 52.2 | F156: 57.42 | G156: Oui | H156: 17.4 | I156: 3 | J156: Cornouaille
A157: 2024-07-30 | B157: FA01228140 | C157: le jardin d'été | D157: Déjeuner de travail | E157: 63.71 | F157: 71 | G157: Oui | H157: 21.23 | I157: 2 | J157: Projet office d etourisme Quimper
A158: 2024-08-02 | B158: 137 | C158: Hatoup/ Le Labo | D158: Déjeuner de travail | E158: 241.92 | F158: 256 | G158: Oui | H158: 75.6 | I158: 2à5 | J158: ponts cabinet x5
A159: 2024-10-09 | B159: F24100917589 | C159: Les Jardins du Prieuré | D159: Déjeuner de travail | E159: 127 | F159: 140.7 | G159: Oui | H159: 21.16 | I159: 6 | J159: Point dossiers
A160: 2024-10-10 | B160: F031056361 | C160: Corpotravel | D160: congrès des maires train + hotel | E160: 517 | F160: 860.6 | H160: 517 | I160: 1 | J160: Congrès des Maires
A161: 2024-09-30 | B161: 162 | C161: Hatoup/ Le Labo | D161: Déjeuner de travail | E161: 223.02 | F161: 236 | G161: Oui | H161: 118 | I161: 2 | J161: 8 Déjeuners de travail SEPT
A162: 2024-10-31 | B162: 170 | C162: Hatoup/ Le Labo | D162: Déjeuner de travail | E162: 194.2 | F162: 205.5 | G162: Oui | H162: 94.84 | I162: 2à4 | J162: 6 déjeuners de travail OCT
A163: 2024-12-02 | B163: 179 | C163: Hatoup/ Le Labo | D163: Déjeuner de travail | E163: 204.12 | F163: 216 | G163: Oui | H163: 94.5 | I163: 2à3 | J163: 7 déjeuners de travail NOV
A164: 2024-12-22 | B164: 199 | C164: Hatoup/ Le Labo | D164: Déjeuner de travail | E164: 55.76 | F164: 59 | G164: Oui | H164: 45.5 | I164: 2 | J164: 3 déjeuners de travail NOV
A165: 2024-12-09 | B165: CG242088 | C165: AMF | D165: ENTREE CONGRES DES MAIRES 2024 | E165: 760 | F165: 760 | G165: Oui | H165: 95 | I165: 9 | J165: ENTREE CONGRES DES MAIRES 2024
A166: 2025-01-14 | B166: F25011462-18507 | C166: Les Jardins du Prieuré | D166: Déjeuner de travail | E166: 39.8 | F166: 43.78 | G166: Oui | H166: 19.9 | I166: 2 | J166: Dejeuner avec Ajoint Maire BREST
A167: 2025-01-14 | B167: F25011470-18515 | C167: Les Jardins du Prieuré | D167: Déjeuner de travail | E167: 109.5 | F167: 121.45 | G167: Oui | H167: 21.09 | I167: 5 | J167: Arbitrage budgetaire
A168: 03/02/20025 | B168: 210 | C168: Hatoup/ Le Labo | D168: Déjeuner de travail | E168: 144.55 | F168: 152.5 | G168: Oui | H168: 72.27 | I168: 2à3 | J168: 5 déjeuners de travail FEV
A169: 2025-02-12 | B169: F25021255-18840 | C169: Les Jardins du Prieuré | D169: Déjeuner de travail | E169: 492.27 | F169: 549.3 | G169: Oui | H169: 76.29 | I169: 6 | J169: Dejeuner theme accessibilité
A170: 2025-03-03 | B170: 212 | C170: Hatoup/ Le Labo | D170: Déjeuner de travail | E170: 99.05 | F170: 104.5 | G170: Oui | H170: 42.45 | I170: 1a4 | J170: point hebdo + arbitrage budgetaire
A171: 2025-03-03 | B171: F25030308-19006 | C171: Les Jardins du Prieuré | D171: Déjeuner de travail | E171: 54 | F171: 60.9 | G171: Oui | H171: 27 | I171: 2 | J171: point dossiers hebdo
A172: 2025-03-31 | B172: FC2-2503-000135 | C172: ravalec | D172: Déjeuner de travail | E172: 106.8 | F172: 117.48 | G172: Oui | H172: 26.7 | I172: 4 | J172: Reunion de direction
A173: 2025-03-31 | B173: F25033143-19235 | C173: Les Jardins du Prieuré | D173: Déjeuner de travail | E173: 94.6 | F173: 105.56 | G173: Oui | H173: 23.65 | I173: 4 | J173: ordre du jour et validation BM
A174: 2025-03-24 | B174: F25033142-19234 | C174: Les Jardins du Prieuré | D174: Déjeuner de travail | E174: 54 | F174: 60.9 | G174: Oui | H174: 27 | I174: 2 | J174: point délégation
A175: 2025-04-01 | B175: 241 | C175: Hatoup/ Le Labo | D175: Déjeuner de travail | E175: 146.92 | F175: 155 | G175: Oui | H175: 29.38 | I175: 2 | J175: 10 déjeuners de travail NOV
A176: 2025-04-14 | B176: F25041410-19370 | C176: Les Jardins du Prieuré | D176: Déjeuner de travail | E176: 58.9 | F176: 64.79 | G176: Oui | H176: 19.63 | I176: 3 | J176: déjeuners de travail
A177: 2025-04-25 | B177: 25042025 | C177: Copper J | D177: Déjeuner de travail | E177: 330.05 | F177: 370.8 | G177: Oui | H177: 41.25 | I177: 8 | J177: conférence handicap
A178: 2025-05-01 | B178: 246 | C178: Hatoup/ Le Labo | D178: Déjeuner de travail | E178: 75.83 | F178: 80 | G178: Oui | H178: 45.49 | I178: 2 | J178: point cabinet
A179: 2025-05-27 | B179: CC-FC21-2505-000002 | C179: nektar Quimper | D179: Déjeuner de travail | E179: 9 | F179: 9.5 | G179: Oui | H179: 9 | I179: 1 | J179: Déjeuner de travail
A180: 2025-05-31 | B180: 352 | C180: Hatoup/ Le Labo | D180: Déjeuner de travail | E180: 111.85 | F180: 118 | G180: Oui | H180: 69.9 | I180: 2 | J180: point dossiers hebdo cabinet X 5
A181: 2025-05-27 | B181: F25052709-19687 | C181: Les Jardins du Prieuré | D181: Déjeuner de travail | E181: 74.7 | F181: 83.67 | G181: Oui | H181: 24.09 | I181: 3 | J181: validation ordre du jour CM
A182: 2025-07-01 | B182: 271 | C182: Hatoup/ Le Labo | D182: Déjeuner de travail | E182: 111.85 | F182: 118 | G182: Oui | H182: 69.9 | I182: 2 | J182: point dossiers hebdo cabinet X 5
A183: 2025-07-15 | B183: F25071506-20193 | C183: Les Jardins du Prieuré | D183: Déjeuner de travail | E183: 57.8 | F183: 61.78 | G183: Oui | H183: 27.7 | I183: 2 | J183: point dossiers hebdo
A184: 2025-06-20 | B184: 28 | C184: cloarec/jardin de l'été | D184: Déjeuner de travail | E184: 122.27 | F184: 134.5 | G184: Oui | H184: 24.45 | I184: 5 | J184: OEUVRES DE MR DOARE
A185: 2025-08-01 | B185: 281 | D185: Déjeuner de travail | E185: 60.66 | F185: 64 | G185: Oui | H185: 32 | I185: 2 | J185: point dossiers hebdo
A186: 2025-09-30 | B186: 295 | C186: Hatoup/ Le Labo | D186: Déjeuner de travail | E186: 58.77 | F186: 62 | G186: Oui | H186: 29.38 | I186: 2 | J186: point dossiers hebdo
A187: 2024-09-24 | B187: 10 | C187: la pepinnière | D187: Déjeuner de travail | E187: 172.28 | F187: 191 | G187: Oui | H187: 19.13 | I187: 9 | J187: THEME: SECURITE AVEC COMMUNE DE ST BRIEUC
A188: 2025-01-13 | C188: Corpotravel | D188: train +HOTEL | E188: 389 | F188: 390.4 | G188: Oui | H188: 389 | I188: 1 | J188: COMITE DU HANDICAP 15/01/25 AMF
A189: 2025-01-31 | B189: F0310593788 | C189: Corpotravel | D189: train | E189: 407 | F189: 408.4 | G189: Oui | H189: 407.4 | I189: 1 | J189: REPRESENTATION AMF
A190: 2025-10-03 | B190: F031065471 | C190: Corpotravel | D190: train | E190: 93 | F190: 93.4 | G190: Oui | H190: 93 | I190: 1 | J190: DEPLACEMENT CONGRES DES MAIRES
A191: 2025-09-22 | B191: F031064909 | C191: Corpotravel | D191: HOTEL | E191: 815 | F191: 816 | G191: Oui | H191: 815 | I191: 1 | J191: DEPLACEMENT CONGRES DES MAIRES

Sheet 2020_115_QBO (hidden)
A1: EXERCICE 2020
A2: COMPTE 6257 Réceptions
A3: Date M+ | B3: N° M+ | C3: N° BD | D3: N°Tiers | E3: Tiers | F3: Libellé écriture | G3: Montant HT | H3: Montant TTC | I3: Fonction | J3: Nature | K3: Service
A4: 2020-07-21 | B4: 3545 | C4: 591 | D4: 34604 | E4: L'ATELIER DES GOURMETS | F4: FAC. F000134 DU 17/07/2020 TRAITEUR POUR LE CONSEIL COMMUNAUTAIRE DU 16/07/2020 | G4: 1190 | H4: 1428 | I4: 020 | J4: 6257 | K4: 115
A5: 2020-10-13 | B5: 5108 | C5: 857 | D5: 17157 | E5: SUR LES QUAIS | F5: FAC. 43 DU 02/10/2020 DEJEUNER DE TRAVAIL MME ASSIH ET M. LE PHILIPPE DIRECTEUR DE L'ESAT TY HENT GLAZ | G5: 41.67 | H5: 46.5 | I5: 020 | J5: 6257 | K5: 115
A6: 2020-10-13 | B6: 5136 | C6: 857 | D6: 31192 | E6: EVENTS SERVICES SECURITE | F6: FAC. 20200200266 DU 30/09/2020 PRESTATION DE SECURITE DU CONSEIL COMMUNAUTAIRE DU 24/09/2020 | G6: 189.26 | H6: 227.11 | I6: 020 | J6: 6257 | K6: 115
A7: 2020-11-03 | B7: 5575 | C7: 936 | D7: 21370 | E7: LE PRIEURE QUIMPER | F7: FAC. 20003049 DU 21/08/2020 DEJEUNER SUITE A LA VISITE DE L'ENTREPRISE ENTECH | G7: 548.64 | H7: 610.5 | I7: 020 | J7: 6257 | K7: 115
A8: 2020-11-03 | B8: 5579 | C8: 936 | D8: 17157 | E8: SUR LES QUAIS | F8: FAC. TICKET 77064 DU 16/10/2020 DEJEUNER DE TRAVAIL MME. ASSIH M. DECOURCHELLE AMENAGEMENT DE L'ESPACE COMMUNAUTAIRE | G8: 37.82 | H8: 41.6 | I8: 020 | J8: 6257 | K8: 115
A9: 2020-11-10 | B9: 5619 | C9: 945 | D9: 3354 | E9: KEMPER GASTRONOMIE | F9: FAC. F20110402 DU 04/11/2020 DEJEUNER DE TRAVAIL MMES.ASSIH + DURWELL ET GACOGNE POINT SUR LE COMMERCE EN CENTRE VILLE | G9: 82.45 | H9: 93.2 | I9: 020 | J9: 6257 | K9: 115
A10: 2020-12-17 | B10: 6972 | C10: 1152 | D10: 21079 | E10: QUIMPER EVENEMENTS | F10: FAC. FA2012-0455 DU 14/12/20320 ORGANISATION CONSEIL COMMUNAUTAIRE DU 03/12/2020 | G10: 6308.88 | H10: 7570.66 | I10: 020 | J10: 6257 | K10: 115
A11: COMPTE 6532 Frais de missions des élus
A12: Date M+ | B12: N° M+ | C12: N° BD | D12: N°Tiers | E12: Tiers | F12: Libellé écriture | G12: Montant HT | H12: Montant TTC | I12: Fonction | J12: Nature | K12: Service
A13: 2020-10-06 | B13: 4929 | C13: 834 | D13: 30762 | E13: RAILLARD ET FILS | F13: FAC. F031025206 DU 30/09/2020 DEPLACEMENT A PARIS MMES ASSIH ET DADKHAH MM. HERRY ET ANDRO PROJET VECTURA | G13: 430.16 | H13: 430.16 | I13: 020 | J13: 6532 | K13: 115
A14: 2020-10-06 | B14: 4932 | C14: 834 | D14: 30762 | E14: RAILLARD ET FILS | F14: FAC. F031025191 DU 30/09/2020 DEPLACEMENT A PARIS DANS LE CADRE DU PROJET VECTURA | G14: 889.92 | H14: 895.92 | I14: 020 | J14: 6532 | K14: 115
A15: 2020-10-27 | B15: 5463 | C15: 908 | D15: 23048 | E15: ASSIH ISABELLE | F15: REMBOURSEMENT FRAIS DE DEPLACEMENT A MME ASSIH POUR LE PROJET VECTURA A PARIS | G15: 305.2 | H15: 305.2 | I15: 020 | J15: 6532 | K15: 115

Sheet 2021_115_QBO (hidden)
A1: EXERCICE 2021
A2: COMPTE 6257 Réceptions
A3: Date M+ | B3: N° M+ | C3: N° BD | D3: N°Tiers | E3: Tiers | F3: Libellé écriture | G3: Montant HT | H3: Montant TTC | I3: Fonction | J3: Nature | K3: Service
A4: 2021-01-26 | B4: 458 | C4: 72 | D4: 27630 | E4: LES JARDINS DU PRIEURE | F4: FAC. F21011231-4955 DU 12/01/2021 PLATEAUX REPAS DEJEUNER PREPARATION RENCONTRE CD29 | G4: 71.2 | H4: 78.32 | I4: 020 | J4: 6257 | K4: 115
A5: 2021-02-23 | B5: 1010 | C5: 174 | D5: 3354 | E5: KEMPER GASTRONOMIE | F5: FAC. F21020505 DU 05/02/2021 PLATEAUX REPAS MME ASSIH ET M.G UYADER POINT CABINET | G5: 30 | H5: 33 | I5: 020 | J5: 6257 | K5: 115
A6: 2021-06-22 | B6: 3272 | C6: 579 | D6: 27630 | E6: LES JARDINS DU PRIEURE | F6: FAC. F21062229-7554 DU 22/06/2021 PLATEAUX REPAS REUNION CA QCD | G6: 53.4 | H6: 58.74 | I6: 020 | J6: 6257 | K6: 115
A7: 2021-06-29 | B7: 3388 | C7: 608 | D7: 27630 | E7: LES JARDINS DU PRIEURE | F7: FAC. F21062261-7586 DU 22/06/2021 PLATEAUX REPAS REUNION POINT PPI QBO | G7: 71.2 | H7: 78.32 | I7: 020 | J7: 6257 | K7: 115
A8: 2021-07-06 | B8: 3560 | C8: 641 | D8: 27630 | E8: LES JARDINS DU PRIEURE | F8: FAC. F21062229 DU 22/06/2021 PLATEAUX REPAS POUR LA REUNION DE PREPARATION DU CA DE QUIMPER CORNOUAILLE DEVELOPPEMENT | G8: 53.4 | H8: 58.74 | I8: 020 | J8: 6257 | K8: 115
A9: 2021-10-19 | B9: 5720 | C9: 1011 | D9: 27630 | E9: LES JARDINS DU PRIEURE | F9: FAC. E16E044523 DU 12/10/2021 - VAL ODJ BUREAU COMMUNAUTAIRE 24/09/2021 - I ASSIH/ G GRAMOULLE/ R GUYADER | G9: 51.3 | H9: 56.43 | I9: 020 | J9: 6257 | K9: 115
A10: 2021-10-19 | B10: 5721 | C10: 1011 | D10: 27630 | E10: LES JARDINS DU PRIEURE | F10: FAC. C9E74385 DU 13/10/2021 - DEJ W CONSEILLERS TERRITORIAUX I ASSIH/ MP JEAN JACQUES/ M STERVINOU | G10: 58.5 | H10: 64.35 | I10: 020 | J10: 6257 | K10: 115
A11: 2021-10-26 | B11: 5934 | C11: 1051 | D11: 27630 | E11: LES JARDINS DU PRIEURE | F11: FAC. CE1F932510 DU 23/10/21 - DEJEUNER TRAVAIL POINT URBANISME HABITAT REEMISSION SUITE REJET | G11: 73.5 | H11: 80.85 | I11: 020 | J11: 6257 | K11: 115
A12: 2021-11-09 | B12: 6117 | C12: 1093 | D12: 36675 | E12: RESTAURANT TY MELINE | F12: FAC. 26 DU 13/10/2021 - REPAS DU 13/10/2021 REUNION DES 14 MAIRES MEMBRES DE QBO A EDERN | G12: 270.31 | H12: 304 | I12: 020 | J12: 6257 | K12: 115
A13: 2021-12-21 | B13: 7372 | C13: 1270 | D13: 27630 | E13: LES JARDINS DU PRIEURE | F13: FAC. F21091402-8074 DU 14/09/2021 CAFE ACCUEIL CHAPEAU ROUGE 08/09/2021 - PROJET COMMUNAUTAIRE DIAGNOSTIC/ENJEUX | G13: 646 | H13: 710.6 | I13: 020 | J13: 6257 | K13: 115

Sheet 2022_115_QBO (hidden)
A1: EXERCICE 2022
A2: COMPTE 6257 Réceptions
A3: Date M+ | B3: N° M+ | C3: N° BD | D3: N°Tiers | E3: Tiers | F3: Libellé écriture | G3: Montant HT | H3: Montant TTC | I3: Fonction | J3: Nature | K3: Service
A4: 2022-01-18 | B4: 290 | C4: 47 | D4: 34604 | E4: L'ATELIER DES GOURMETS | F4: F000550 DU 03/01/2022 CONVENTION ANNUELLE PROJET COMMUNAUTAI COKTAIL DINATOIRE CENTRE CONGRES CHAPEAU ROUGE 9/11/2021 | G4: 1440 | H4: 1584 | I4: 020 | J4: 6257 | K4: 115
A5: 2022-01-18 | B5: 289 | C5: 47 | D5: 27630 | E5: LES JARDINS DU PRIEURE | F5: F21120908-8917 DU 09/12/2021- DEJEUNER INSERTION JEUNESSE I ASSIH- D LE GOFF - R LE GUYADER | G5: 53.4 | H5: 58.74 | I5: 020 | J5: 6257 | K5: 115
A6: 2022-04-20 | B6: 2176 | C6: 413 | D6: 27630 | E6: LES JARDINS DU PRIEURE | F6: F22041122 DU 11/04/2022 - DEJ ATTRACTIVITE DU TERRITOIRE 14/ 03/2022 - I ASSIH ET M ANDRO | G6: 29.4 | H6: 32.34 | I6: 020 | J6: 6257 | K6: 115
A7: 2022-06-21 | B7: 3607 | C7: 674 | D7: 37764 | E7: PORTZIC | F7: FAC. THTL-20358/1 DU 28/03/2022 - DEJEUNER CONFERENCES DES M AIRES QBO + E MARTIN+ R GUYADER - D LE BIGOT | G7: 561.6 | H7: 627.7 | I7: 020 | J7: 6257 | K7: 115
A8: 2022-06-28 | B8: 3759 | C8: 702 | D8: 27630 | E8: LES JARDINS DU PRIEURE | F8: F22061331 DU 13/06/2022 - PREPARATION BUREAU COMMUNAUTAIRE I ASSIH-D LEROY - T FEREC - PLATEAUX REPAS | G8: 54.3 | H8: 59.73 | I8: 020 | J8: 6257 | K8: 115
A9: 2022-09-20 | B9: 5388 | C9: 1000 | D9: 27630 | E9: LES JARDINS DU PRIEURE | F9: F22091316 DU 13/09/2022 - DEJEUNER TRAVAIL I ASSIH- T FEREC POINT GOUVERNANCE QBO -SUJETS DE RENTREE | G9: 47.4 | H9: 52.14 | I9: 020 | J9: 6257 | K9: 115
A10: 2022-09-20 | B10: 5387 | C10: 1000 | D10: 25832 | E10: RAVALEC TRAITEUR | F10: FAC. FC2-2209-000010 DU 01/09/2022- FOURNITURES RECEPTION SI GNATURE ENTRE LE CD29 ET QBO - 18/07/2022 | G10: 385.02 | H10: 406.2 | I10: 020 | J10: 6257 | K10: 115
A11: 2022-09-27 | B11: 5538 | C11: 1032 | D11: 17157 | E11: SUR LES QUAIS | F11: FAC. 84262 DU 08/09/2022 - DEJ TRAVAIL I ASSIH- M DE CALAN V OLET 3 PACTES 2030 | G11: 40 | H11: 44 | I11: 020 | J11: 6257 | K11: 115
A12: 2022-01-25 | B12: 421 | C12: 71 | D12: 2519 | E12: TGE FLEURODET | F12: FAC. 1212a DU 13/01/2022 GERBES DE FLEURS OBSEQUES FAMILLE G OURIOU - MERE DE MME ASSIH | G12: 100 | H12: 120 | I12: 020 | J12: 6257 | K12: 115

Sheet 2023_115_QBO (hidden)
A1: EXERCICE 2023 - PARTIE 1
A2: COMPTE 6257 Réceptions
A3: Date M+ | B3: N° M+ | C3: N° BD | D3: N°Tiers | E3: Tiers | F3: Libellé écriture | G3: Montant HT | H3: Montant TTC | I3: Fonction | J3: Nature | K3: Service
A4: 2023-01-24 | B4: 324 | C4: 52 | D4: 27630 | E4: LES JARDINS DU PRIEURE | F4: FAC. F22121986 DU 19/12/2022 BUREAU COMMUNAUTAIRE PLATEAUX R EPAS 2022 | G4: 75.2 | H4: 82.72 | I4: 020 | J4: 6257 | K4: 115
A5: 2023-01-24 | B5: 325 | C5: 52 | D5: 27630 | E5: LES JARDINS DU PRIEURE | F5: FAC. F22121990 DU 19/12/2022 REUNION PUBLIQUE PLUI 50 PERSON NES | G5: 400 | H5: 440 | I5: 020 | J5: 6257 | K5: 115
A6: 2023-02-14 | B6: 816 | C6: 146 | D6: 16663 | E6: LA FERME DE L ODET | F6: 2023-02-13_REPAS_7COUVERTS BAILLEURS SOCIAUX SUR LE TERRITOI RE | G6: 270.3 | H6: 301.5 | I6: 020 | J6: 6257 | K6: 115
A7: 2023-02-14 | B7: 815 | C7: 146 | D7: 15824 | E7: RESTAURANT TI COZ | F7: 2023-02-10_REPAS_2COUVERTS POINT SUR LES DOSSIERS TRANSITION ENERGETIQUE + NUMERIQUE | G7: 124.09 | H7: 136.5 | I7: 020 | J7: 6257 | K7: 115
A8: 2023-04-04 | B8: 1667 | C8: 309 | D8: 25832 | E8: RAVALEC TRAITEUR | F8: FAC. FC2-2303-000020 DU 03/03/2023 RECEPTION INAUGURATION BA TIMENT ADMINISTRATIF PROVIDENCE | G8: 362.62 | H8: 388 | I8: 020 | J8: 6257 | K8: 115
A9: 2023-04-04 | B9: 1669 | C9: 309 | D9: 27630 | E9: LES JARDINS DU PRIEURE | F9: FAC. F230216122 DU 16/02/2023 RECEPTION PARTENAIRES CONFEREN CE DE PRESSE OPEN DE TENNIS | G9: 420 | H9: 462 | I9: 020 | J9: 6257 | K9: 115
A10: 2023-04-04 | B10: 1670 | C10: 309 | D10: 27630 | E10: LES JARDINS DU PRIEURE | F10: FAC. F23031305 DU 13/03/2023 ECHANGE TOURISME BUREAU COMMUNA UTAIRE | G10: 66.4 | H10: 74.04 | I10: 020 | J10: 6257 | K10: 115
A11: 2023-04-18 | B11: 1976 | C11: 355 | D11: 25832 | E11: RAVALEC TRAITEUR | F11: FAC. FC2-2304-000021 DU 06/04/2023 DEJEUNER DE TRAVAIL ECHAN GES ENTRE ELUS ET AGRIDEIZ ET CMA | G11: 108 | H11: 118.8 | I11: 020 | J11: 6257 | K11: 115
A12: 2023-04-25 | B12: 2103 | C12: 379 | D12: 27630 | E12: LES JARDINS DU PRIEURE | F12: FAC. F23041714 DU 17/04/2023 ÉCHANGES ENTRES ÉLUS QBO + CCA + DZ CO | G12: 152.2 | H12: 168.42 | I12: 020 | J12: 6257 | K12: 115
A13: 2023-04-25 | B13: 2104 | C13: 379 | D13: 27630 | E13: LES JARDINS DU PRIEURE | F13: FAC. F23041725 DU 17/04/2023 DEJEUNER DE TRAVAIL INSERTION & JEUNESSE | G13: 82.4 | H13: 91.64 | I13: 020 | J13: 6257 | K13: 115
A14: 2023-05-16 | B14: 2484 | C14: 460 | D14: 25832 | E14: RAVALEC TRAITEUR | F14: FAC. FC2-2304-000117 DU 18/04/2023 DEJEUNER DE TRAVAIL ECHAN GES ENTRE ELUS DU BUREAU COMMUNAUTAIRE | G14: 161.5 | H14: 177.65 | I14: 020 | J14: 6257 | K14: 115
A15: 2023-05-16 | B15: 2485 | C15: 460 | D15: 26573 | E15: ALLIUM SARL | F15: FAC. 23000587/02 DU 18/03/2023 DEJEUNER DE TRAVAIL ELUS + PR ESIDENT UBO - ENSEIGNEMENT SUPERIEUR | G15: 195.45 | H15: 218 | I15: 020 | J15: 6257 | K15: 115
A16: 2023-06-06 | B16: 2899 | C16: 543 | D16: 27630 | E16: LES JARDINS DU PRIEURE | F16: FAC. F23051904-12990 DU 19/05/2023 HVC LOCRONAN INAUGURATION OFFICE DU TOURISME | G16: 1902 | H16: 2187.2 | I16: 020 | J16: 6257 | K16: 115
A20: EXERCICE 2023 - PARTIE 2
A21: COMPTE 6257 Réceptions
A22: Date M+ | B22: N° M+ | C22: N° BD | D22: N°Tiers | E22: Tiers | F22: Libellé écriture | G22: Montant HT | H22: Montant TTC | I22: Fonction | J22: Nature | K22: Service

Sheet 2024_115_QBO (hidden)
A1: EXERCICE 2024
A2: COMPTE 6257 Réceptions
A3: Date M+ | B3: N° M+ | C3: N° BD | D3: N°Tiers | E3: Tiers | F3: Libellé écriture | G3: Montant HT | H3: Montant TTC | I3: Fonction | J3: Nature | K3: Service

Sheet TRAVAIL_ALC (hidden)
A1: QBO - EXERCICE 2020-2023
A2: COMPTE 6257 Réceptions
A3: Date M+ | B3: N° M+ | C3: N° BD | D3: N°Tiers | E3: Tiers | F3: Libellé écriture | G3: Montant HT | H3: Montant TTC | I3: Fonction | J3: Nature | K3: Service
A4: 2020-07-21 | B4: 3545 | C4: 591 | D4: 34604 | E4: L'ATELIER DES GOURMETS | F4: FAC. F000134 DU 17/07/2020 TRAITEUR POUR LE CONSEIL COMMUNAUTAIRE DU 16/07/2020 | G4: 1190 | H4: 1428 | I4: 020 | J4: 6257 | K4: 115
A5: 2020-10-13 | B5: 5108 | C5: 857 | D5: 17157 | E5: SUR LES QUAIS | F5: FAC. 43 DU 02/10/2020 DEJEUNER DE TRAVAIL MME ASSIH ET M. LE PHILIPPE DIRECTEUR DE L'ESAT TY HENT GLAZ | G5: 41.67 | H5: 46.5 | I5: 020 | J5: 6257 | K5: 115
A6: 2020-10-13 | B6: 5136 | C6: 857 | D6: 31192 | E6: EVENTS SERVICES SECURITE | F6: FAC. 20200200266 DU 30/09/2020 PRESTATION DE SECURITE DU CONSEIL COMMUNAUTAIRE DU 24/09/2020 | G6: 189.26 | H6: 227.11 | I6: 020 | J6: 6257 | K6: 115
A7: 2020-11-03 | B7: 5575 | C7: 936 | D7: 21370 | E7: LE PRIEURE QUIMPER | F7: FAC. 20003049 DU 21/08/2020 DEJEUNER SUITE A LA VISITE DE L'ENTREPRISE ENTECH | G7: 548.64 | H7: 610.5 | I7: 020 | J7: 6257 | K7: 115
A8: 2020-11-03 | B8: 5579 | C8: 936 | D8: 17157 | E8: SUR LES QUAIS | F8: FAC. TICKET 77064 DU 16/10/2020 DEJEUNER DE TRAVAIL MME. ASSIH M. DECOURCHELLE AMENAGEMENT DE L'ESPACE COMMUNAUTAIRE | G8: 37.82 | H8: 41.6 | I8: 020 | J8: 6257 | K8: 115
A9: 2020-11-10 | B9: 5619 | C9: 945 | D9: 3354 | E9: KEMPER GASTRONOMIE | F9: FAC. F20110402 DU 04/11/2020 DEJEUNER DE TRAVAIL MMES.ASSIH + DURWELL ET GACOGNE POINT SUR LE COMMERCE EN CENTRE VILLE | G9: 82.45 | H9: 93.2 | I9: 020 | J9: 6257 | K9: 115
A10: 2020-12-17 | B10: 6972 | C10: 1152 | D10: 21079 | E10: QUIMPER EVENEMENTS | F10: FAC. FA2012-0455 DU 14/12/20320 ORGANISATION CONSEIL COMMUNAUTAIRE DU 03/12/2020 | G10: 6308.88 | H10: 7570.66 | I10: 020 | J10: 6257 | K10: 115
A11: 2021-01-26 | B11: 458 | C11: 72 | D11: 27630 | E11: LES JARDINS DU PRIEURE | F11: FAC. F21011231-4955 DU 12/01/2021 PLATEAUX REPAS DEJEUNER PREPARATION RENCONTRE CD29 | G11: 71.2 | H11: 78.32 | I11: 020 | J11: 6257 | K11: 115
A12: 2021-02-23 | B12: 1010 | C12: 174 | D12: 3354 | E12: KEMPER GASTRONOMIE | F12: FAC. F21020505 DU 05/02/2021 PLATEAUX REPAS MME ASSIH ET M.G UYADER POINT CABINET | G12: 30 | H12: 33 | I12: 020 | J12: 6257 | K12: 115
A13: 2021-06-22 | B13: 3272 | C13: 579 | D13: 27630 | E13: LES JARDINS DU PRIEURE | F13: FAC. F21062229-7554 DU 22/06/2021 PLATEAUX REPAS REUNION CA QCD | G13: 53.4 | H13: 58.74 | I13: 020 | J13: 6257 | K13: 115
A14: 2021-06-29 | B14: 3388 | C14: 608 | D14: 27630 | E14: LES JARDINS DU PRIEURE | F14: FAC. F21062261-7586 DU 22/06/2021 PLATEAUX REPAS REUNION POINT PPI QBO | G14: 71.2 | H14: 78.32 | I14: 020 | J14: 6257 | K14: 115
A15: 2021-07-06 | B15: 3560 | C15: 641 | D15: 27630 | E15: LES JARDINS DU PRIEURE | F15: FAC. F21062229 DU 22/06/2021 PLATEAUX REPAS POUR LA REUNION DE PREPARATION DU CA DE QUIMPER CORNOUAILLE DEVELOPPEMENT | G15: 53.4 | H15: 58.74 | I15: 020 | J15: 6257 | K15: 115
A16: 2021-10-19 | B16: 5720 | C16: 1011 | D16: 27630 | E16: LES JARDINS DU PRIEURE | F16: FAC. E16E044523 DU 12/10/2021 - VAL ODJ BUREAU COMMUNAUTAIRE 24/09/2021 - I ASSIH/ G GRAMOULLE/ R GUYADER | G16: 51.3 | H16: 56.43 | I16: 020 | J16: 6257 | K16: 115
A17: 2021-10-19 | B17: 5721 | C17: 1011 | D17: 27630 | E17: LES JARDINS DU PRIEURE | F17: FAC. C9E74385 DU 13/10/2021 - DEJ W CONSEILLERS TERRITORIAUX I ASSIH/ MP JEAN JACQUES/ M STERVINOU | G17: 58.5 | H17: 64.35 | I17: 020 | J17: 6257 | K17: 115
A18: 2021-10-26 | B18: 5934 | C18: 1051 | D18: 27630 | E18: LES JARDINS DU PRIEURE | F18: FAC. CE1F932510 DU 23/10/21 - DEJEUNER TRAVAIL POINT URBANISME HABITAT REEMISSION SUITE REJET | G18: 73.5 | H18: 80.85 | I18: 020 | J18: 6257 | K18: 115
A19: 2021-11-09 | B19: 6117 | C19: 1093 | D19: 36675 | E19: RESTAURANT TY MELINE | F19: FAC. 26 DU 13/10/2021 - REPAS DU 13/10/2021 REUNION DES 14 MAIRES MEMBRES DE QBO A EDERN | G19: 270.31 | H19: 304 | I19: 020 | J19: 6257 | K19: 115
A20: 2021-12-21 | B20: 7372 | C20: 1270 | D20: 27630 | E20: LES JARDINS DU PRIEURE | F20: FAC. F21091402-8074 DU 14/09/2021 CAFE ACCUEIL CHAPEAU ROUGE 08/09/2021 - PROJET COMMUNAUTAIRE DIAGNOSTIC/ENJEUX | G20: 646 | H20: 710.6 | I20: 020 | J20: 6257 | K20: 115
A21: 2022-01-18 | B21: 290 | C21: 47 | D21: 34604 | E21: L'ATELIER DES GOURMETS | F21: F000550 DU 03/01/2022 CONVENTION ANNUELLE PROJET COMMUNAUTAI COKTAIL DINATOIRE CENTRE CONGRES CHAPEAU ROUGE 9/11/2021 | G21: 1440 | H21: 1584 | I21: 020 | J21: 6257 | K21: 115
A22: 2022-01-18 | B22: 289 | C22: 47 | D22: 27630 | E22: LES JARDINS DU PRIEURE | F22: F21120908-8917 DU 09/12/2021- DEJEUNER INSERTION JEUNESSE I ASSIH- D LE GOFF - R LE GUYADER | G22: 53.4 | H22: 58.74 | I22: 020 | J22: 6257 | K22: 115
A23: 2022-04-20 | B23: 2176 | C23: 413 | D23: 27630 | E23: LES JARDINS DU PRIEURE | F23: F22041122 DU 11/04/2022 - DEJ ATTRACTIVITE DU TERRITOIRE 14/ 03/2022 - I ASSIH ET M ANDRO | G23: 29.4 | H23: 32.34 | I23: 020 | J23: 6257 | K23: 115
A24: 2022-06-21 | B24: 3607 | C24: 674 | D24: 37764 | E24: PORTZIC | F24: FAC. THTL-20358/1 DU 28/03/2022 - DEJEUNER CONFERENCES DES M AIRES QBO + E MARTIN+ R GUYADER - D LE BIGOT | G24: 561.6 | H24: 627.7 | I24: 020 | J24: 6257 | K24: 115
A25: 2022-06-28 | B25: 3759 | C25: 702 | D25: 27630 | E25: LES JARDINS DU PRIEURE | F25: F22061331 DU 13/06/2022 - PREPARATION BUREAU COMMUNAUTAIRE I ASSIH-D LEROY - T FEREC - PLATEAUX REPAS | G25: 54.3 | H25: 59.73 | I25: 020 | J25: 6257 | K25: 115
A26: 2022-09-20 | B26: 5388 | C26: 1000 | D26: 27630 | E26: LES JARDINS DU PRIEURE | F26: F22091316 DU 13/09/2022 - DEJEUNER TRAVAIL I ASSIH- T FEREC POINT GOUVERNANCE QBO -SUJETS DE RENTREE | G26: 47.4 | H26: 52.14 | I26: 020 | J26: 6257 | K26: 115
A27: 2022-09-20 | B27: 5387 | C27: 1000 | D27: 25832 | E27: RAVALEC TRAITEUR | F27: FAC. FC2-2209-000010 DU 01/09/2022- FOURNITURES RECEPTION SI GNATURE ENTRE LE CD29 ET QBO - 18/07/2022 | G27: 385.02 | H27: 406.2 | I27: 020 | J27: 6257 | K27: 115
A28: 2022-09-27 | B28: 5538 | C28: 1032 | D28: 17157 | E28: SUR LES QUAIS | F28: FAC. 84262 DU 08/09/2022 - DEJ TRAVAIL I ASSIH- M DE CALAN V OLET 3 PACTES 2030 | G28: 40 | H28: 44 | I28: 020 | J28: 6257 | K28: 115
A29: 2022-01-25 | B29: 421 | C29: 71 | D29: 2519 | E29: TGE FLEURODET | F29: FAC. 1212a DU 13/01/2022 GERBES DE FLEURS OBSEQUES FAMILLE G OURIOU - MERE DE MME ASSIH | G29: 100 | H29: 120 | I29: 020 | J29: 6257 | K29: 115
A30: 2023-01-24 | B30: 324 | C30: 52 | D30: 27630 | E30: LES JARDINS DU PRIEURE | F30: FAC. F22121986 DU 19/12/2022 BUREAU COMMUNAUTAIRE PLATEAUX R EPAS 2022 | G30: 75.2 | H30: 82.72 | I30: 020 | J30: 6257 | K30: 115
A31: 2023-01-24 | B31: 325 | C31: 52 | D31: 27630 | E31: LES JARDINS DU PRIEURE | F31: FAC. F22121990 DU 19/12/2022 REUNION PUBLIQUE PLUI 50 PERSON NES | G31: 400 | H31: 440 | I31: 020 | J31: 6257 | K31: 115
A32: 2023-02-14 | B32: 816 | C32: 146 | D32: 16663 | E32: LA FERME DE L ODET | F32: 2023-02-13_REPAS_7COUVERTS BAILLEURS SOCIAUX SUR LE TERRITOI RE | G32: 270.3 | H32: 301.5 | I32: 020 | J32: 6257 | K32: 115
A33: 2023-02-14 | B33: 815 | C33: 146 | D33: 15824 | E33: RESTAURANT TI COZ | F33: 2023-02-10_REPAS_2COUVERTS POINT SUR LES DOSSIERS TRANSITION ENERGETIQUE + NUMERIQUE | G33: 124.09 | H33: 136.5 | I33: 020 | J33: 6257 | K33: 115
A34: 2023-04-04 | B34: 1667 | C34: 309 | D34: 25832 | E34: RAVALEC TRAITEUR | F34: FAC. FC2-2303-000020 DU 03/03/2023 RECEPTION INAUGURATION BA TIMENT ADMINISTRATIF PROVIDENCE | G34: 362.62 | H34: 388 | I34: 020 | J34: 6257 | K34: 115
A35: 2023-04-04 | B35: 1669 | C35: 309 | D35: 27630 | E35: LES JARDINS DU PRIEURE | F35: FAC. F230216122 DU 16/02/2023 RECEPTION PARTENAIRES CONFEREN CE DE PRESSE OPEN DE TENNIS | G35: 420 | H35: 462 | I35: 020 | J35: 6257 | K35: 115
A36: 2023-04-04 | B36: 1670 | C36: 309 | D36: 27630 | E36: LES JARDINS DU PRIEURE | F36: FAC. F23031305 DU 13/03/2023 ECHANGE TOURISME BUREAU COMMUNA UTAIRE | G36: 66.4 | H36: 74.04 | I36: 020 | J36: 6257 | K36: 115
A37: 2023-04-18 | B37: 1976 | C37: 355 | D37: 25832 | E37: RAVALEC TRAITEUR | F37: FAC. FC2-2304-000021 DU 06/04/2023 DEJEUNER DE TRAVAIL ECHAN GES ENTRE ELUS ET AGRIDEIZ ET CMA | G37: 108 | H37: 118.8 | I37: 020 | J37: 6257 | K37: 115
A38: 2023-04-25 | B38: 2103 | C38: 379 | D38: 27630 | E38: LES JARDINS DU PRIEURE | F38: FAC. F23041714 DU 17/04/2023 ÉCHANGES ENTRES ÉLUS QBO + CCA + DZ CO | G38: 152.2 | H38: 168.42 | I38: 020 | J38: 6257 | K38: 115
A39: 2023-04-25 | B39: 2104 | C39: 379 | D39: 27630 | E39: LES JARDINS DU PRIEURE | F39: FAC. F23041725 DU 17/04/2023 DEJEUNER DE TRAVAIL INSERTION & JEUNESSE | G39: 82.4 | H39: 91.64 | I39: 020 | J39: 6257 | K39: 115
A40: 2023-05-16 | B40: 2484 | C40: 460 | D40: 25832 | E40: RAVALEC TRAITEUR | F40: FAC. FC2-2304-000117 DU 18/04/2023 DEJEUNER DE TRAVAIL ECHAN GES ENTRE ELUS DU BUREAU COMMUNAUTAIRE | G40: 161.5 | H40: 177.65 | I40: 020 | J40: 6257 | K40: 115
A41: 2023-05-16 | B41: 2485 | C41: 460 | D41: 26573 | E41: ALLIUM SARL | F41: FAC. 23000587/02 DU 18/03/2023 DEJEUNER DE TRAVAIL ELUS + PR ESIDENT UBO - ENSEIGNEMENT SUPERIEUR | G41: 195.45 | H41: 218 | I41: 020 | J41: 6257 | K41: 115
A42: 2023-06-06 | B42: 2899 | C42: 543 | D42: 27630 | E42: LES JARDINS DU PRIEURE | F42: FAC. F23051904-12990 DU 19/05/2023 HVC LOCRONAN INAUGURATION OFFICE DU TOURISME | G42: 1902 | H42: 2187.2 | I42: 020 | J42: 6257 | K42: 115
A43: COMPTE 6532 Frais de missions des élus
A44: Date M+ | B44: N° M+ | C44: N° BD | D44: N°Tiers | E44: Tiers | F44: Libellé écriture | G44: Montant HT | H44: Montant TTC | I44: Fonction | J44: Nature | K44: Service
A45: 2020-10-06 | B45: 4929 | C45: 834 | D45: 30762 | E45: RAILLARD ET FILS | F45: FAC. F031025206 DU 30/09/2020 DEPLACEMENT A PARIS MMES ASSIH ET DADKHAH MM. HERRY ET ANDRO PROJET VECTURA | G45: 430.16 | H45: 430.16 | I45: 020 | J45: 6532 | K45: 115
A46: 2020-10-06 | B46: 4932 | C46: 834 | D46: 30762 | E46: RAILLARD ET FILS | F46: FAC. F031025191 DU 30/09/2020 DEPLACEMENT A PARIS DANS LE CADRE DU PROJET VECTURA | G46: 889.92 | H46: 895.92 | I46: 020 | J46: 6532 | K46: 115
A47: 2020-10-27 | B47: 5463 | C47: 908 | D47: 23048 | E47: ASSIH ISABELLE | F47: REMBOURSEMENT FRAIS DE DEPLACEMENT A MME ASSIH POUR LE PROJET VECTURA A PARIS | G47: 305.2 | H47: 305.2 | I47: 020 | J47: 6532 | K47: 115
A50: VQ - EXERCICE 2020-2023
A51: COMPTE 6257 Réceptions
A52: Date M+ | B52: N° M+ | C52: N° BD | D52: N°Tiers | E52: Tiers | F52: Libellé écriture | G52: Montant HT | H52: Montant TTC | I52: Fonction | J52: Nature | K52: Service
A53: 2020-07-15 | B53: 5661 | C53: 695 | D53: 27630 | E53: LES JARDINS DU PRIEURE | F53: FAC. F20071012-3461 DU 10/07/2020 COCKTAIL LORS DU CONSEIL MUNICIPAL DU 05/07/2020 | G53: 1100 | H53: 1240 | I53: 020 | J53: 6257 | K53: 115
A54: 2020-08-04 | B54: 6081 | C54: 757 | D54: 34591 | E54: CAFE DU COMMERCE | F54: FAC. 29/7 DU 29/07/2020 DEJEUNER DE TRAVAIL MME LA MAIRE ET M. GRAMOULLE DU 29/07/2020 | G54: 28.73 | H54: 31.6 | I54: 020 | J54: 6257 | K54: 115
A55: 2020-09-15 | B55: 7223 | C55: 885 | D55: 13625 | E55: C COM CAFE | F55: FAC. TICKET 014500 DU 29/08/2020 PANIERS REPAS SEMINAIRE DES ELUS AU CHAPEAU ROUGE | G55: 99.55 | H55: 108.4 | I55: 020 | J55: 6257 | K55: 115
A56: 2020-09-22 | B56: 7391 | C56: 907 | D56: 23048 | E56: ASSIH ISABELLE | F56: REMBOURSEMENT A MME ASSIH DEJEUNER AVEC M. LESNEVAN | G56: 36.7 | H56: 36.7 | I56: 020 | J56: 6257 | K56: 115
A57: 2020-09-29 | B57: 7541 | C57: 933 | D57: 27630 | E57: LES JARDINS DU PRIEURE | F57: FAC. F20090303-3599 DU 03/09/2020 PLATEAUX REPAS LORS DU SEMINAIRE DES ELUS LE 29/08/2020 | G57: 651 | H57: 716.1 | I57: 020 | J57: 6257 | K57: 115
A58: 2020-09-29 | B58: 7542 | C58: 933 | D58: 27630 | E58: LES JARDINS DU PRIEURE | F58: FAC. F20090302-3598 DU 03/09/2020 PLATEAUX REPAS LORS DU SEMINAIRE DES ELUS LE 28/08/2020 | G58: 790.5 | H58: 869.55 | I58: 020 | J58: 6257 | K58: 115
A59: 2020-10-13 | B59: 8205 | C59: 1003 | D59: 17157 | E59: SUR LES QUAIS | F59: FAC. 2 DU 25/09/2020 DEJEUNER DE TRAVAIL MMES.ASSIH ET VIGNON PROJETS DE L'OPAC | G59: 40.18 | H59: 44.2 | I59: 020 | J59: 6257 | K59: 115
A60: 2020-10-20 | B60: 8534 | C60: 1037 | D60: 13625 | E60: C COM CAFE | F60: FAC. TICKET 017846 DU 19/10/2020 DEJEUNER DE TRAVAIL MME ASSIH ET PRIGENT MAISON DES ASSOCIATIONS | G60: 43.91 | H60: 48 | I60: 020 | J60: 6257 | K60: 115
A61: 2020-11-03 | B61: 9027 | C61: 1087 | D61: 3262 | E61: LE JARDIN D ETE | F61: FAC. 8 DU 09/10/2020 DEJEUNER DE TRAVAIL MME ASSIH M. GRAMOULLE POINT SUR LES DOSSIERS EN COURS | G61: 36.64 | H61: 40.3 | I61: 020 | J61: 6257 | K61: 115
A62: 2020-11-17 | B62: 9750 | C62: 1160 | D62: 27630 | E62: LES JARDINS DU PRIEURE | F62: FAC. F201114172-4103 DU 05/11/2020 PLATEAUX REPAS 3 PERSONNES REUNION POINT DELEGATION | G62: 53.31 | H62: 58.64 | I62: 020 | J62: 6257 | K62: 115
A63: 2020-11-17 | B63: 9751 | C63: 1160 | D63: 27630 | E63: LES JARDINS DU PRIEURE | F63: FAC. F201114180-4111 DU 14/11/2020 PLATEAUX REPAS 3 PERSONNES REUNION ORGANISATION SERVICE DES ESPACES VERTS | G63: 72.27 | H63: 79.5 | I63: 020 | J63: 6257 | K63: 115
A64: 2020-11-17 | B64: 9752 | C64: 1160 | D64: 27630 | E64: LES JARDINS DU PRIEURE | F64: FAC. F201114175-4106 DU 14/11/2020 PLATEAUX REPAS 3 PERSONNES REUNION POINT DELEGATION | G64: 56.58 | H64: 62.24 | I64: 020 | J64: 6257 | K64: 115
A65: 2020-11-17 | B65: 9753 | C65: 1160 | D65: 27630 | E65: LES JARDINS DU PRIEURE | F65: FAC. F201114191-4122 DU 14/11/2020 PLATEAUX REPAS 2 PERSONNES REUNION MEDIATEUR REPUBLIQUE | G65: 35.6 | H65: 39.16 | I65: 020 | J65: 6257 | K65: 115
A66: 2020-12-01 | B66: 10245 | C66: 1223 | D66: 21370 | E66: LE PRIEURE QUIMPER | F66: FAC. F20112185 DU 21/11/2020 PLATEAUX REPAS POINT SUR LES DOSSIERS EN COURS MME ASSIH MM. GRAMOULE ET GUYADER | G66: 53.4 | H66: 58.74 | I66: 020 | J66: 6257 | K66: 115
A67: 2020-12-08 | B67: 10659 | C67: 1257 | D67: 27630 | E67: LES JARDINS DU PRIEURE | F67: FAC. F2012307-4357 DU 03/12/2020 PLATEAUX REPAS REUNION SUR LE RECRUTEMENT | G67: 53.4 | H67: 58.74 | I67: 020 | J67: 6257 | K67: 115
A68: 2020-12-08 | B68: 10660 | C68: 1257 | D68: 27630 | E68: LES JARDINS DU PRIEURE | F68: FAC. F20120116-4270 DU 01/12/2020 PLATEAUX REPAS REUNION POINT SUR LES DOSSIERS EN COURS | G68: 48.95 | H68: 58.74 | I68: 020 | J68: 6257 | K68: 115
A69: 2020-12-22 | B69: 11238 | C69: 1334 | D69: 24958 | E69: RESTAURANT LE GLOBE | F69: FAC. FACTURE DU 14/12/2020 DEJEUNER DE TRAVAIL POINT BIMENSUEL SUR LES PROJETS EN COURS MME ASSIH M. GRAMOULLE | G69: 46.92 | H69: 49.5 | I69: 020 | J69: 6257 | K69: 115
A70: 2020-12-22 | B70: 11239 | C70: 1334 | D70: 35304 | E70: ALOHA FRESH BOWL | F70: FAC. 1 DU 17/12/2020 DEJEUNERS DE TRAVAIL POINT URBANISME ET CABINET | G70: 95.45 | H70: 105 | I70: 020 | J70: 6257 | K70: 115
A71: 2021-01-12 | B71: 125 | C71: 18 | D71: 27630 | E71: LES JARDINS DU PRIEURE | F71: FAC. F20122804-4635 DU 28/12/2 020 PLATEAUX REPAS MME ASSIH ET M.GUYADER POINT CABINET | G71: 40.34 | H71: 44.37 | I71: 020 | J71: 6257 | K71: 115
A72: 2021-01-26 | B72: 300 | C72: 56 | D72: 27630 | E72: LES JARDINS DU PRIEURE | F72: FAC. F21012015-5110 DU 20/01/2021 PLATEAUX REPAS P OINT SUR LES MAIRIES DE QUARTIER | G72: 136.02 | H72: 149.62 | I72: 020 | J72: 6257 | K72: 115
A73: 2021-01-26 | B73: 301 | C73: 56 | D73: 27630 | E73: LES JARDINS DU PRIEURE | F73: FAC. F21011215-4939 DU 12/01/2021 PLATEAUX REPAS DEHEUNER DE TRAVAIL PRISE DE CONTACT NOUVEAU DGS | G73: 79.08 | H73: 86.99 | I73: 020 | J73: 6257 | K73: 115
A74: 2021-02-16 | B74: 1072 | C74: 155 | D74: 34604 | E74: L'ATELIER DES GOURMETS | F74: FAC. F000287 DU 01/02/2021 PLATEAUX REPAS REUNION VALIDA TION ORXDRE DU JOUR BUREAU MUNICIPAL | G74: 130.88 | H74: 143.97 | I74: 020 | J74: 6257 | K74: 115
A75: 2021-02-16 | B75: 1075 | C75: 155 | D75: 34604 | E75: L'ATELIER DES GOURMETS | F75: FAC. F000295 DU 09/02/2021 PLATEAUX REPAS REUNION POINT CABINET LE 08/02/2021 | G75: 49.08 | H75: 53.99 | I75: 020 | J75: 6257 | K75: 115
A76: 2021-02-16 | B76: 1076 | C76: 155 | D76: 34604 | E76: L'ATELIER DES GOURMETS | F76: FAC. F000294 DU 09/02/2021 DEJEUNER DE TRAVAIL MANAGER D U CENTRE VILLE LE 09/02/2021 | G76: 98.16 | H76: 107.98 | I76: 020 | J76: 6257 | K76: 115
A77: 2021-02-16 | B77: 1080 | C77: 155 | D77: 35304 | E77: ALOHA FRESH BOWL | F77: FAC. 2 DU 16/02/2021 PLATEAUX REPAS DIVERSES REUNI ONS | G77: 81.82 | H77: 90 | I77: 020 | J77: 6257 | K77: 115
A78: 2021-03-02 | B78: 1478 | C78: 209 | D78: 27630 | E78: LES JARDINS DU PRIEURE | F78: FAC. 021 DU 25/02/2021 PLATEAUX REPAS REUNION PASSAG E AUX 1607 HEURES | G78: 47.4 | H78: 52.14 | I78: 020 | J78: 6257 | K78: 115
A79: 2021-03-09 | B79: 1816 | C79: 239 | D79: 27630 | E79: LES JARDINS DU PRIEURE | F79: FAC. F20112185-4231 DU 21/11/2020 PLATEAUX REPAS REU NION POINT CABINET LE 16/11/2020 | G79: 53.4 | H79: 58.74 | I79: 020 | J79: 6257 | K79: 115
A80: 2021-03-16 | B80: 2100 | C80: 273 | D80: 25832 | E80: RAVALEC TRAITEUR | F80: FAC. FC2-2103-000018 DU 08/03/2021 PLATEAUX REPAS POINT CABINET LE 08/03/2021 | G80: 49.2 | H80: 54.12 | I80: 020 | J80: 6257 | K80: 115
A81: 2021-03-16 | B81: 2101 | C81: 273 | D81: 25832 | E81: RAVALEC TRAITEUR | F81: FAC. FC2-2102-000098 DU 22/02/2021 PLATEAUX REPAS P OINT CABINET LE 22/02/2021 | G81: 42.6 | H81: 46.86 | I81: 020 | J81: 6257 | K81: 115
A82: 2021-03-30 | B82: 2605 | C82: 339 | D82: 27630 | E82: LES JARDINS DU PRIEURE | F82: FAC. C9FF84258942539 DU 29/03/2021 PLATEAUX REPAS P OINT CABINET MME ASSIH ET MM. GUYADER ET GRAMOULLE | G82: 53.4 | H82: 58.74 | I82: 020 | J82: 6257 | K82: 115
A83: 2021-04-20 | B83: 3215 | C83: 415 | D83: 34604 | E83: L'ATELIER DES GOURMETS | F83: FAC. F000354 DU 12/04/2021 4 PLATEAUX REPAS REUNION DOSS IER LES HALLES LE 25/03/2021 | G83: 65.44 | H83: 71.98 | I83: 020 | J83: 6257 | K83: 115
A84: 2021-04-20 | B84: 3216 | C84: 415 | D84: 34604 | E84: L'ATELIER DES GOURMETS | F84: FAC. F000351 DU 12/04/2021 13 PLATEAUX REPAS REUNION TOU R DE FRANCE ELUS / POLICE LE 30/03/2021 | G84: 212.68 | H84: 233.95 | I84: 020 | J84: 6257 | K84: 115
A85: 2021-04-27 | B85: 3506 | C85: 459 | D85: 34604 | E85: L'ATELIER DES GOURMETS | F85: FAC. F000364 DU 19/04/2021 PLATEAUX REPAS POINT CABINET MME ASSIH ET MM. GRAMOULLE ET GUYADER | G85: 49.08 | H85: 53.99 | I85: 020 | J85: 6257 | K85: 115
A86: 2021-05-04 | B86: 3849 | C86: 484 | D86: 3354 | E86: KEMPER GASTRONOMIE | F86: FAC. F21012311 DU 23/01/2021 DEJ 21/01/21-CONSEIL MUNI+COM I ASSIH-R GUYADER- E MARTIN - K COVEMAEKER | G86: 54.56 | H86: 60.02 | I86: 020 | J86: 6257 | K86: 115
A87: 2021-06-15 | B87: 5148 | C87: 670 | D87: 31791 | E87: LA PEPINIERE | F87: FAC. Facture 1 DU 04/06/2021 DEJEUNER 2 PERSONNES 04/06/21 I ASSIH + D LESVENAN- DOSSIERS URBANISMES | G87: 32.09 | H87: 35.3 | I87: 020 | J87: 6257 | K87: 115
A88: 2021-06-15 | B88: 5150 | C88: 670 | D88: 35304 | E88: ALOHA FRESH BOWL | F88: FAC. 21/4 DU 21/04/2021 PLATEAUX REPAS - I ASSIH PREP DIVERSES REUNIONS-23/03 + 26/03+01/04 + 09/04/2021 | G88: 136.36 | H88: 150 | I88: 020 | J88: 6257 | K88: 115
A89: 2021-06-22 | B89: 5320 | C89: 702 | D89: 27630 | E89: LES JARDINS DU PRIEURE | F89: FAC. BD7E07965 DU 10/06/2021 PLATEAUX REPAS POINT CABINET MME ASSIH ET MM. GRAMOULLE ET GUYADER LE 03/06/2021 | G89: 53.4 | H89: 58.74 | I89: 020 | J89: 6257 | K89: 115
A90: 2021-06-22 | B90: 5321 | C90: 702 | D90: 27630 | E90: LES JARDINS DU PRIEURE | F90: FAC. F21062218-7543 DU 22/06/2021 PLATEAUX REPAS REUNION DE DIRECTION | G90: 71.2 | H90: 78.32 | I90: 020 | J90: 6257 | K90: 115
A91: 2021-06-22 | B91: 5322 | C91: 702 | D91: 26289 | E91: LE XXI | F91: FAC. 1 DU 14/06/2021 DEJEUNER DE TRAVAIL POINT SUR LES DOSSIERS EN COURS | G91: 42.09 | H91: 46.3 | I91: 020 | J91: 6257 | K91: 115
A92: 2021-07-06 | B92: 5774 | C92: 761 | D92: 27630 | E92: LES JARDINS DU PRIEURE | F92: FAC. D9B72239480 DU 25/06/2021 2 PLATEAUX REPAS POINT DELEGA TION MMES ASSIH ET DURRWELL | G92: 35.6 | H92: 39.16 | I92: 020 | J92: 6257 | K92: 115
A93: 2021-07-20 | B93: 6504 | C93: 825 | D93: 27630 | E93: LES JARDINS DU PRIEURE | F93: FAC. F21071527-7794 DU 15/07/2021 4 PLATEAUX REP AS POINT AVEC L'ARS LE 06/07/21 | G93: 90.8 | H93: 99.88 | I93: 020 | J93: 6257 | K93: 115
A94: 2021-08-03 | B94: 6883 | C94: 878 | D94: 3354 | E94: KEMPER GASTRONOMIE | F94: FAC. F21011501 DU 15/01/2021 12 PLATEAUX REPAS REUNIONS P OINT QUIMPER GASTRONOMIE ET PROJET LOCATION THEATRE MJ | G94: 163.68 | H94: 180.05 | I94: 020 | J94: 6257 | K94: 115
A95: 2021-08-03 | B95: 6884 | C95: 878 | D95: 3354 | E95: KEMPER GASTRONOMIE | F95: FAC. F21031903 DU 19/03/2021 3 PLATEAUX REPAS REUNION AVEC LE PRESIDENT DE DE LA CHAMBRE DES METIERS | G95: 45 | H95: 49.5 | I95: 020 | J95: 6257 | K95: 115
A96: 2021-08-03 | B96: 6885 | C96: 878 | D96: 3354 | E96: KEMPER GASTRONOMIE | F96: FAC. F21031103 DU 11/03/2021 4 PLATEAUX REPAS REUNION DOSS IER LES HALLES LE 11/03/2021 | G96: 60 | H96: 66 | I96: 020 | J96: 6257 | K96: 115
A97: 2021-09-14 | B97: 8208 | C97: 1040 | D97: 3354 | E97: KEMPER GASTRONOMIE | F97: FAC. F21083008 bis DU 30/08/2021 PLATEAUX REPAS R EUNION PROJETS CULTURELS | G97: 63.64 | H97: 70 | I97: 020 | J97: 6257 | K97: 115
A98: 2021-09-21 | B98: 8471 | C98: 1070 | D98: 27311 | E98: COPPER J | F98: FAC. 25062021 DU 25/06/2021 DEJEUNER DE TRAVAIL MME ASSIH M.LESVENAN POINT URBANISME | G98: 40.91 | H98: 45 | I98: 020 | J98: 6257 | K98: 115
A99: 2021-09-28 | B99: 8818 | C99: 1116 | D99: TERR910223 | E99: EURL COTE BISTROT | F99: FAC. FC-21-2309 DU 23/09/2021 DEJEUNER POUR LES 50 ANS DE Q UIPER-REMSHEID | G99: 312.04 | H99: 353.9 | I99: 020 | J99: 6257 | K99: 115
A100: 2021-10-12 | B100: 9480 | C100: 1177 | D100: 25832 | E100: RAVALEC TRAITEUR | F100: FAC. FC2-2109-000100 DU 27/09/ REPAS 27/09/21-ASSIH I ANDRO POINT DELEGATION PILOTAGE POLITIQUES PUBLIQUES- | G100: 28.4 | H100: 31.24 | I100: 020 | J100: 6257 | K100: 115
A101: 2021-10-19 | B101: 9715 | C101: 1215 | D101: 27630 | E101: LES JARDINS DU PRIEURE | F101: FAC. CBD8C8215044 DU 13/10/2021- I ASSIH-GRAMOULLE -GUYADER POINT CABINET ADMINISTRATION GENERALE | G101: 51.3 | H101: 56.43 | I101: 020 | J101: 6257 | K101: 115
A102: 2021-10-26 | B102: 10148 | C102: 1250 | D102: 3354 | E102: KEMPER GASTRONOMIE | F102: FAC. F21091306T DU 13/09/2021- DEJ W SUR LES 1607 HEURES I A SSIH-U CREQUER - C COROLLER - R GUYADER | G102: 60 | H102: 66 | I102: 020 | J102: 6257 | K102: 115
A103: 2021-11-16 | B103: 10709 | C103: 1306 | D103: 27630 | E103: LES JARDINS DU PRIEURE | F103: FAC. F21110902-8621 DU 09/11/2021-DEJEUNER I ASSIH-GRAMOULLE R GUYADER - POINT CABINET ADMINISTRATIO NGENERALE | G103: 53.4 | H103: 58.74 | I103: 020 | J103: 6257 | K103: 115
A104: 2021-11-16 | B104: 10710 | C104: 1306 | D104: 27630 | E104: LES JARDINS DU PRIEURE | F104: FAC. B2673104 DU 09/11/2021 - DEJEUNER PREFET / MAIRE 6 PERS ASSIH-LE PREFET- E MARTIN- R GUYADER- DIRECT PREF + CABINET | G104: 106.8 | H104: 117.48 | I104: 020 | J104: 6257 | K104: 115
A105: 2021-11-16 | B105: 10711 | C105: 1306 | D105: 27630 | E105: LES JARDINS DU PRIEURE | F105: FAC. F21110910-8629 DU 09/11/2021- DEJEUNER PRESENTATION ESQ UISSES ROZMARIA I ASSIH + D LESVENAN + POINT CULTURE | G105: 65 | H105: 71.5 | I105: 020 | J105: 6257 | K105: 115
A106: 2021-11-23 | B106: 11225 | C106: 1355 | D106: RA781 | E106: TREVETTEN PATRICE | F106: REGUL REGIE ADMIN GENERALE DEJEUNERS DE TRAVAIL | G106: 211.38 | H106: 211.38 | I106: 020 | J106: 6257 | K106: 115
A107: 2021-11-23 | B107: 11255 | C107: 1361 | D107: 27630 | E107: LES JARDINS DU PRIEURE | F107: FAC. F21020516-5366 DU 05/02/2021- RENCONTRE PRE CONSEIL MUN ICIPAL - I ASSIH + K GHACHEM | G107: 42.73 | H107: 47 | I107: 020 | J107: 6257 | K107: 115
A108: 2021-12-28 | B108: 12864 | C108: 1521 | D108: 27630 | E108: LES JARDINS DU PRIEURE | F108: FAC.F21120918-8927 DU 09/12/2021-DEJEUNER AFFAIRES GENERALES I ASSIH - G GRAMOULE - R GUYADER | G108: 53.4 | H108: 58.74 | I108: 020 | J108: 6257 | K108: 115
A109: 2021-12-28 | B109: 12865 | C109: 1521 | D109: 27630 | E109: LES JARDINS DU PRIEURE | F109: F21120917-8926 DU 09/12/21-VALIDATION ODJ BUREAU MUNICIPAL D U 09/12/2021 | G109: 68.1 | H109: 74.91 | I109: 020 | J109: 6257 | K109: 115
A110: 2022-01-07 | B110: 13491 | C110: 1561 | D110: 27630 | E110: LES JARDINS DU PRIEURE | F110: FAC. F22010602-9134 DU 06/01/2022 -POINT DELEGATION I ASSIH - ROMAIN GUYADER - M STERVINOU | G110: 53.4 | H110: 58.74 | I110: 020 | J110: 6257 | K110: 115
A111: 2022-03-01 | B111: 1635 | C111: 233 | D111: 17157 | E111: SUR LES QUAIS | F111: FAC 3 - DEJ POINT PROJETS VILLEDELEGUES MAJORITE VILLE I ASS IH - Y FORMENTIN MORY- MP JEAN JACQUES | G111: 55.27 | H111: 60.8 | I111: 020 | J111: 6257 | K111: 115
A112: 2022-05-03 | B112: 4043 | C112: 540 | D112: 35304 | E112: ALOHA FRESH BOWL | F112: FAC. 6 DU 16/03/2021- DEJEUNERS DE TRAVAIL MME LA MAIRE ENTR E 2 REUNIONS | G112: 272.74 | H112: 300.01 | I112: 020 | J112: 6257 | K112: 115
A113: 2022-06-21 | B113: 5871 | C113: 768 | D113: RA781 | E113: TREVETTEN PATRICE | F113: REGUL REGIE ADMIN GENERALE DEJEUNERS DE TRAVAIL MME ASSIH | G113: 275.52 | H113: 275.52 | I113: 020 | J113: 6257 | K113: 115
A114: 2022-06-28 | B114: 6045 | C114: 797 | D114: 14545 | E114: LA MIE CALINE | F114: FAC. 11032022 DU 11/03/2022 - DEJEUNER DE TRAVAIL LE 28/02/2 022 | G114: 8.33 | H114: 9.05 | I114: 020 | J114: 6257 | K114: 115
A115: 2022-06-28 | B115: 6046 | C115: 797 | D115: 14545 | E115: LA MIE CALINE | F115: FAC. 28022022 DU 28/02/2022 - DEJEUNER DE TRAVAIL LE 11/03/2 022 | G115: 8.33 | H115: 9.05 | I115: 020 | J115: 6257 | K115: 115
A116: 2022-07-26 | B116: 6993 | C116: 917 | D116: 27630 | E116: LES JARDINS DU PRIEURE | F116: FAC. F22071304 DU 13/07/2022 DEJEUNER DE TRAVAIL MME ASSIH ET M. R. GUYADER LE 13/6/2022 | G116: 37.6 | H116: 41.36 | I116: 020 | J116: 6257 | K116: 115
A117: 2022-08-09 | B117: 7771 | C117: 986 | D117: 27630 | E117: LES JARDINS DU PRIEURE | F117: FAC. 29754 0321067864 DU 04/08/2022- DEJ CABINET -I ASSIH G GRAMOULLE / R GUYADER | G117: 71.1 | H117: 78.21 | I117: 020 | J117: 6257 | K117: 115
A118: 2022-10-18 | B118: 10431 | C118: 1309 | D118: 27630 | E118: LES JARDINS DU PRIEURE | F118: FAC. F22101096 DU 10/10/2022- DEJ POINT DOSSIERS EN COURS I ASSIH-L VIGNON-P TROGLIA-P BROUDEUR-R GUYADER | G118: 90.5 | H118: 99.55 | I118: 020 | J118: 6257 | K118: 115
A119: 2022-10-18 | B119: 10433 | C119: 1309 | D119: 27630 | E119: LES JARDINS DU PRIEURE | F119: F221010100 DU 10/10/2022- DEJ POINT DOSSIERS EN COURS I ASSI H- R GUYADER | G119: 37.6 | H119: 41.36 | I119: 020 | J119: 6257 | K119: 115
A120: 2022-10-18 | B120: 10432 | C120: 1309 | D120: 27630 | E120: LES JARDINS DU PRIEURE | F120: F22101097 DU 10/10/22- DEJEUNER POINT ELUS QUARTIER- I ASSIH JASSERONDG GRAMOULLE-C LE BRUN-M PHILIPPE-JE BOULEY-A AUROUX | G120: 131.6 | H120: 144.76 | I120: 020 | J120: 6257 | K120: 115
A121: 2022-10-18 | B121: 10434 | C121: 1309 | D121: 32236 | E121: MAISON JAÏN | F121: FC21-2209-000002 DU 22/09/2022- RENCONTRE I ASSIH ET AGENTS MSP PENHARS-22/09/2022 | G121: 63.98 | H121: 67.5 | I121: 020 | J121: 6257 | K121: 115
A122: 2022-10-18 | B122: 10435 | C122: 1309 | D122: 32236 | E122: MAISON JAÏN | F122: FC21-2210-000001 DU 11/10/2022- CAFE/GATEAUX MAIRIE PENHARS I ASSIH ET AGENTS DE SECTEUR | G122: 154.8 | H122: 163.31 | I122: 020 | J122: 6257 | K122: 115
A123: 2022-10-18 | B123: 10436 | C123: 1309 | D123: 38341 | E123: GUNGOR | F123: FACTURE 05 10 2022 - DEJEUNER REUNION DE QUARTIER ERGUE-ARME L- I ASSIH+Y FORMENTIN-U CREQUER-D LESVENAN+ | G123: 213.61 | H123: 228.5 | I123: 020 | J123: 6257 | K123: 115
A124: 2022-10-31 | B124: 10850 | C124: 1359 | D124: RA781 | E124: TREVETTEN PATRICE | F124: REGUL REGIE D'AVANCES ADMINISTRATION GENERALE DU 31.10.2022 DEJEUNERS DE TRAVAIL I.ASSIH | G124: 158.18 | H124: 189.81 | I124: 020 | J124: 6257 | K124: 115
A125: 2022-11-22 | B125: 11580 | C125: 1436 | D125: 14545 | E125: LA MIE CALINE | F125: FAC. 31052022 DU 31/05/2022 REPAS 5 FORMULES EXTRA 33 - 31/0 5/2022 | G125: 36.22 | H125: 39 | I125: 020 | J125: 6257 | K125: 115
A126: 2022-11-22 | B126: 11581 | C126: 1436 | D126: 27630 | E126: LES JARDINS DU PRIEURE | F126: FAC. F22110805 DU 08/11/2022 DEJEUNERS DE TRAVAIL - 2022 | G126: 75.2 | H126: 82.72 | I126: 020 | J126: 6257 | K126: 115
A127: 2022-11-22 | B127: 11584 | C127: 1436 | D127: 27630 | E127: LES JARDINS DU PRIEURE | F127: FAC. F22110806 DU 08/11/2022 DEJEUNERS DE TRAVAIL - 2022 | G127: 56.4 | H127: 62.04 | I127: 020 | J127: 6257 | K127: 115
A128: 2022-11-22 | B128: 11585 | C128: 1436 | D128: 27630 | E128: LES JARDINS DU PRIEURE | F128: FAC. F22110807 DU 08/11/2022 REPAS 4 PLATEAUX REPAS 24/10/20 22 | G128: 75.2 | H128: 82.72 | I128: 020 | J128: 6257 | K128: 115
A129: 2022-12-08 | B129: 12349 | C129: 1527 | D129: TERR910223 | E129: EURL COTE BISTROT | F129: FAC. FC-22-0112 DU 01/12/2022 REPAS 5 PERSONNES | G129: 137.48 | H129: 152.8 | I129: 020 | J129: 6257 | K129: 115
A130: 2022-12-08 | B130: 12361 | C130: 1530 | D130: 27311 | E130: COPPER J | F130: FAC. 20052022 DU 20/05/2022 REPAS 10 COUVERTS RENOVATION THE ATRE MAX JACOB | G130: 191.03 | H130: 210.8 | I130: 020 | J130: 6257 | K130: 115
A131: 2022-12-15 | B131: 12725 | C131: 1568 | D131: 27311 | E131: COPPER J | F131: FAC. 22022 DU 28/11/2022 REPAS - 3 COUVERTS ECOLE DE BRODERI E | G131: 93.67 | H131: 105.7 | I131: 020 | J131: 6257 | K131: 115
A132: 2022-12-20 | B132: 13255 | C132: 1645 | D132: RA781 | E132: TREVETTEN PATRICE | F132: REGUL REGIE D'AVANCES ADMINISTRATION GENERALE DEJEUNERS DE TRAVAIL MAIRE | G132: 78.88 | H132: 78.88 | I132: 020 | J132: 6257 | K132: 115
A133: 2023-01-05 | B133: 13490 | C133: 1682 | D133: 27311 | E133: COPPER J | F133: FAC. 20102022 DU 20/10/2022 REPAS 7 COUVERTS - 20/10/2022 | G133: 137.18 | H133: 150.9 | I133: 020 | J133: 6257 | K133: 115
A134: 2023-01-05 | B134: 13494 | C134: 1682 | D134: 27630 | E134: LES JARDINS DU PRIEURE | F134: FAC. F22121985 DU 19/12/2022 PILOTAGE POLITIQUES PUBLIQUES D EJEUNERS DE TRAVAIL - 2022 | G134: 36.2 | H134: 39.82 | I134: 020 | J134: 6257 | K134: 115
A135: 2023-01-05 | B135: 13496 | C135: 1682 | D135: 27630 | E135: LES JARDINS DU PRIEURE | F135: FAC. F22121989 DU 14/11/2022 BUREAU MUNICIPAL DEJEUNERS DE T RAVAIL - 2022 | G135: 54.3 | H135: 59.73 | I135: 020 | J135: 6257 | K135: 115
A136: 2023-01-05 | B136: 13497 | C136: 1682 | D136: 27630 | E136: LES JARDINS DU PRIEURE | F136: FAC. F22122001 DU 20/12/2022 BUREAU MUNICIPAL DEJEUNERS DE T RAVAIL - 2022 | G136: 56.4 | H136: 62.04 | I136: 020 | J136: 6257 | K136: 115
A137: 2022-01-10 | B137: 106 | C137: 9 | D137: 19589 | E137: AMZER ZO | F137: 27/09/2022 - RENCONTRE DES QUARTIERS - KERFEUNTEUN REPAS | G137: 160.94 | H137: 178.7 | I137: 020 | J137: 6257 | K137: 115
A138: 2023-01-24 | B138: 323 | C138: 62 | D138: 38948 | E138: MAKEWAN | F138: FAC. 34 DU 27/09/2022 RENCONTRES DES QUARTIERS KERFEUNTEUN | G138: 160.94 | H138: 178.7 | I138: 020 | J138: 6257 | K138: 115
A139: 2023-02-07 | B139: 666 | C139: 112 | D139: 27630 | E139: LES JARDINS DU PRIEURE | F139: FAC. F23011604 DU 16/01/2023 ECHANGE RUE HAUTE ET SECTEUR CH ATEAUBRIAND | G139: 122.8 | H139: 136.08 | I139: 020 | J139: 6257 | K139: 115
A140: 2023-02-21 | B140: 1107 | C140: 171 | D140: 14545 | E140: LA MIE CALINE | F140: FAC. 11032022 DU 03/11/2022 DEJEUNER I. ASSIH 11/03/2022 | G140: 8.33 | H140: 9.05 | I140: 020 | J140: 6257 | K140: 115
A141: 2023-02-21 | B141: 1110 | C141: 171 | D141: 27630 | E141: LES JARDINS DU PRIEURE | F141: FAC. F230216120 DU 20/01/2023 REUNION DRAC DU 20.01.2023 | G141: 160.4 | H141: 177.44 | I141: 020 | J141: 6257 | K141: 115
A142: 2023-02-28 | B142: 1450 | C142: 226 | D142: 37020 | E142: LE VIN DANS LES VOILES | F142: 2022-10-20 DEPLACEMENT MAIRE + ELUS VISITES DES QUARTIERS ET REUNION PUBLIQUE MEDIATHEQUE | G142: 181.83 | H142: 204.4 | I142: 020 | J142: 6257 | K142: 115
A143: 2023-03-14 | B143: 2083 | C143: 295 | D143: 27630 | E143: LES JARDINS DU PRIEURE | F143: FAC. F23031314 DU 13/03/2023 DEJEUNER DE TRAVAIL DISCUSSION SITE ROZMARIA - 6 PERSONNES | G143: 122.8 | H143: 136.08 | I143: 020 | J143: 6257 | K143: 115
A144: 2023-03-14 | B144: 2084 | C144: 295 | D144: 27630 | E144: LES JARDINS DU PRIEURE | F144: FAC. F23031312 DU 13/03/2023 DEJEUNER DE TRAVAIL ARBITRAGE B UDGETAIRE - 5 PERSONNES | G144: 104 | H144: 115.4 | I144: 020 | J144: 6257 | K144: 115
A145: 2023-04-18 | B145: 3139 | C145: 473 | D145: RA781 | E145: TREVETTEN PATRICE | F145: REGUL REGIE D'AVANCES ADMINISTRATION GENERALE DEJEUNERS TRAV AIL MME ASSIH | G145: 169.22 | H145: 169.22 | I145: 020 | J145: 6257 | K145: 115
A146: 2023-04-24 | B146: 3385 | C146: 499 | D146: 27630 | E146: LES JARDINS DU PRIEURE | F146: FAC. F23041702 DU 17/04/2023 DEJEUNER DE TRAVAIL DU 02/03/20 VALIDATION ORDRE DU JOUR BUREAU MUNICIPAL | G146: 66.4 | H146: 74.04 | I146: 020 | J146: 6257 | K146: 115
A147: 2023-04-24 | B147: 3386 | C147: 499 | D147: 27630 | E147: LES JARDINS DU PRIEURE | F147: FAC. F23041705 DU 17/04/2023 REUNION DE DIRECTION VQ ASSIH + GUYADER + MENUT | G147: 54.3 | H147: 59.73 | I147: 020 | J147: 6257 | K147: 115
A148: 2023-04-24 | B148: 3389 | C148: 499 | D148: 27630 | E148: LES JARDINS DU PRIEURE | F148: FAC. F23041723 DU 17/04/2023 DEJEUNER DE TRAVAIL LES SOLIDAR ITES & LE HANDICAP | G148: 60.4 | H148: 67.44 | I148: 020 | J148: 6257 | K148: 115
A149: 2023-04-24 | B149: 3387 | C149: 499 | D149: 27630 | E149: LES JARDINS DU PRIEURE | F149: FAC. F23041707 DU 17/04/2023 MAIRE + DIRECTEUR CHIC PREPARAT ION CONSEIL DE SURVEILLANCE + UHC | G149: 57.4 | H149: 64.14 | I149: 020 | J149: 6257 | K149: 115
A150: 2023-05-30 | B150: 4586 | C150: 643 | D150: 27630 | E150: LES JARDINS DU PRIEURE | F150: FAC. F23051910 DU 19/05/2023 DEJEUNER DE TRAVAIL ECHANGE ENT RE ELUS SUR L'ACTUALITE | G150: 66.4 | H150: 74.04 | I150: 020 | J150: 6257 | K150: 115
A151: 2023-05-30 | B151: 4587 | C151: 643 | D151: 27630 | E151: LES JARDINS DU PRIEURE | F151: FAC. F23051907 DU 19/05/2023 DEJEUNER DE TRAVAIL ETUDE DES D OSSIERS EN COURS | G151: 66.4 | H151: 74.04 | I151: 020 | J151: 6257 | K151: 115
A152: 2023-05-30 | B152: 4588 | C152: 643 | D152: 3354 | E152: KEMPER GASTRONOMIE | F152: FAC. F23040301 DU 03/04/2023 2 PLATEAUX REPAS RECEPTION DU 0 3/03/2023 LES MOMENTS GOURMANDS | G152: 44 | H152: 48.4 | I152: 020 | J152: 6257 | K152: 115
A153: COMPTE 6532 Frais de missions des élus
A154: Date M+ | B154: N° M+ | C154: N° BD | D154: N°Tiers | E154: Tiers | F154: Libellé écriture | G154: Montant HT | H154: Montant TTC | I154: Fonction | J154: Nature | K154: Service
A155: 2020-12-29 | B155: 11480 | C155: 1358 | D155: 30762 | E155: RAILLARD ET FILS | F155: FAC. F031026081 DU 11/12/2020 DEPLACEMENT A PARIS MMES ASSIH ET QUERE REUNION MINISTERE DES SPORTS LE 15/12/2020 | G155: 218 | H155: 218.8 | I155: 020 | J155: 6532 | K155: 115
A156: 2021-09-21 | B156: 8474 | C156: 1070 | D156: 30762 | E156: RAILLARD ET FILS | F156: FAC. F031029127 DU 16/08/2021 DEPLACEMENT DES ELUS A REIMSHEID | G156: 1890.41 | H156: 1890.41 | I156: 020 | J156: 6532 | K156: 115
A157: 2021-12-21 | B157: 12582 | C157: 1496 | D157: 30762 | E157: RAILLARD ET FILS | F157: FAC. F031030874 DU 15/11/2021 DEPLACEMENT 103E CONGRES MAIRES MME I. ASSIH - PARIS DU 16 AU 18/11/2021 | G157: 613.32 | H157: 614.72 | I157: 020 | J157: 6532 | K157: 115
A158: 2022-01-07 | B158: 13493 | C158: 1561 | D158: 4100 | E158: AMF | F158: FAC.CG212126 DU 03/12/21 PARTICIPATION 103E CONGRES MAIRES - PARIS DU 16 AU 18/11/2021 | G158: 95 | H158: 95 | I158: 020 | J158: 6532 | K158: 115
A159: 2022-12-08 | B159: 12365 | C159: 1531 | D159: 30762 | E159: RAILLARD ET FILS | F159: FAC. F031038845 DU 10/11/2022 DEPLACEMENT PARIS DU 22/11 au 24/11/2022 ASSIH | G159: 883.38 | H159: 884.78 | I159: 020 | J159: 6532 | K159: 115
A160: 2022-12-08 | B160: 12366 | C160: 1531 | D160: 30762 | E160: RAILLARD ET FILS | F160: FAC. F031039155 DU 23/11/2022 DEPLACEMENT PARIS ASSIH 1122-0 0481 - DEPLACEMENT DES ELUS 2022 DU 28/06/2022 | G160: 75 | H160: 75.2 | I160: 020 | J160: 6532 | K160: 115
A161: 2022-12-08 | B161: 12365 | C161: 1531 | D161: 30762 | E161: RAILLARD ET FILS | F161: AVOIR A031009332 DU 23/11/2022 DEPLACEMENT PARIS ASSIH 1122- 00481 - DEPLACEMENT DES ELUS 2022 DU 28/06/2022 | G161: -80 | H161: -80 | I161: 020 | J161: 6532 | K161: 115
A162: 2023-01-05 | B162: 13498 | C162: 1682 | D162: 4100 | E162: AMF | F162: FAC. CG222172 DU 08/12/2022 AMF - MAIRES DE FRANCE 2022 PART ICIPATION 104EME CONGRES | G162: 570 | H162: 570 | I162: 020 | J162: 6532 | K162: 115
A163: COMPTE 6535 Formation des élus
A164: Date M+ | B164: N° M+ | C164: N° BD | D164: N°Tiers | E164: Tiers | F164: Libellé écriture | G164: Montant HT | H164: Montant TTC | I164: Fonction | J164: Nature | K164: Service
A165: 2020-09-22 | B165: 7392 | C165: 907 | D165: 28891 | E165: OXALIS SCOP SA | F165: FAC. 20103033 DU 02/09/2020 FORMATION DE 2 JOURNEES DE L'EQUIPE MUNICIPALE LES 28 ET 29 AOUT | G165: 4300 | H165: 5160 | I165: 020 | J165: 6535 | K165: 115
A166: 2021-03-02 | B166: 1476 | C166: 209 | D166: 6171 | E166: UNIVERSITE BRETAGNE OCCIDENTALE | F166: FAC. 210060377 DU 16/02/2021 FORMATION MME ASSIH PARLER DEVANT UNE CAMERA | G166: 600 | H166: 600 | I166: 020 | J166: 6535 | K166: 115
A167: 2022-09-06 | B167: 8679 | C167: 1095 | D167: 37965 | E167: INSTITUT FORMATION ELUS TERRITOR | F167: FAC. 22074 DU 09/08/2022 FORMATION MME ASSIH - 12/07/2022 MEDIA TRAINING UNE DES CLES DE LA REUSSITE | G167: 3395.31 | H167: 3395.31 | I167: 020 | J167: 6535 | K167: 115

Sheet 2020_115_VQ (hidden)
A1: EXERCICE 2020
A2: COMPTE 6257 Réceptions / Déjeuners de travail
A3: Date M+ | B3: N° M+ | C3: N° BD | D3: N°Tiers | E3: Tiers | F3: Libellé écriture | G3: Montant HT | H3: Montant TTC | I3: Fonction | J3: Nature | K3: Service
A4: 2020-07-15 | B4: 5661 | C4: 695 | D4: 27630 | E4: LES JARDINS DU PRIEURE | F4: FAC. F20071012-3461 DU 10/07/2020 COCKTAIL LORS DU CONSEIL MUNICIPAL DU 05/07/2020 | G4: 1100 | H4: 1240 | I4: 020 | J4: 6257 | K4: 115
A5: 2020-08-04 | B5: 6081 | C5: 757 | D5: 34591 | E5: CAFE DU COMMERCE | F5: FAC. 29/7 DU 29/07/2020 DEJEUNER DE TRAVAIL MME LA MAIRE ET M. GRAMOULLE DU 29/07/2020 | G5: 28.73 | H5: 31.6 | I5: 020 | J5: 6257 | K5: 115
A6: 2020-09-15 | B6: 7223 | C6: 885 | D6: 13625 | E6: C COM CAFE | F6: FAC. TICKET 014500 DU 29/08/2020 PANIERS REPAS SEMINAIRE DES ELUS AU CHAPEAU ROUGE | G6: 99.55 | H6: 108.4 | I6: 020 | J6: 6257 | K6: 115
A7: 2020-09-22 | B7: 7391 | C7: 907 | D7: 23048 | E7: ASSIH ISABELLE | F7: REMBOURSEMENT A MME ASSIH DEJEUNER AVEC M. LESNEVAN | G7: 36.7 | H7: 36.7 | I7: 020 | J7: 6257 | K7: 115
A8: 2020-09-29 | B8: 7541 | C8: 933 | D8: 27630 | E8: LES JARDINS DU PRIEURE | F8: FAC. F20090303-3599 DU 03/09/2020 PLATEAUX REPAS LORS DU SEMINAIRE DES ELUS LE 29/08/2020 | G8: 651 | H8: 716.1 | I8: 020 | J8: 6257 | K8: 115
A9: 2020-09-29 | B9: 7542 | C9: 933 | D9: 27630 | E9: LES JARDINS DU PRIEURE | F9: FAC. F20090302-3598 DU 03/09/2020 PLATEAUX REPAS LORS DU SEMINAIRE DES ELUS LE 28/08/2020 | G9: 790.5 | H9: 869.55 | I9: 020 | J9: 6257 | K9: 115
A10: 2020-10-13 | B10: 8205 | C10: 1003 | D10: 17157 | E10: SUR LES QUAIS | F10: FAC. 2 DU 25/09/2020 DEJEUNER DE TRAVAIL MMES.ASSIH ET VIGNON PROJETS DE L'OPAC | G10: 40.18 | H10: 44.2 | I10: 020 | J10: 6257 | K10: 115
A11: 2020-10-20 | B11: 8534 | C11: 1037 | D11: 13625 | E11: C COM CAFE | F11: FAC. TICKET 017846 DU 19/10/2020 DEJEUNER DE TRAVAIL MME ASSIH ET PRIGENT MAISON DES ASSOCIATIONS | G11: 43.91 | H11: 48 | I11: 020 | J11: 6257 | K11: 115
A12: 2020-11-03 | B12: 9027 | C12: 1087 | D12: 3262 | E12: LE JARDIN D ETE | F12: FAC. 8 DU 09/10/2020 DEJEUNER DE TRAVAIL MME ASSIH M. GRAMOULLE POINT SUR LES DOSSIERS EN COURS | G12: 36.64 | H12: 40.3 | I12: 020 | J12: 6257 | K12: 115
A13: 2020-11-17 | B13: 9750 | C13: 1160 | D13: 27630 | E13: LES JARDINS DU PRIEURE | F13: FAC. F201114172-4103 DU 05/11/2020 PLATEAUX REPAS 3 PERSONNES REUNION POINT DELEGATION | G13: 53.31 | H13: 58.64 | I13: 020 | J13: 6257 | K13: 115
A14: 2020-11-17 | B14: 9751 | C14: 1160 | D14: 27630 | E14: LES JARDINS DU PRIEURE | F14: FAC. F201114180-4111 DU 14/11/2020 PLATEAUX REPAS 3 PERSONNES REUNION ORGANISATION SERVICE DES ESPACES VERTS | G14: 72.27 | H14: 79.5 | I14: 020 | J14: 6257 | K14: 115
A15: 2020-11-17 | B15: 9752 | C15: 1160 | D15: 27630 | E15: LES JARDINS DU PRIEURE | F15: FAC. F201114175-4106 DU 14/11/2020 PLATEAUX REPAS 3 PERSONNES REUNION POINT DELEGATION | G15: 56.58 | H15: 62.24 | I15: 020 | J15: 6257 | K15: 115
A16: 2020-11-17 | B16: 9753 | C16: 1160 | D16: 27630 | E16: LES JARDINS DU PRIEURE | F16: FAC. F201114191-4122 DU 14/11/2020 PLATEAUX REPAS 2 PERSONNES REUNION MEDIATEUR REPUBLIQUE | G16: 35.6 | H16: 39.16 | I16: 020 | J16: 6257 | K16: 115
A17: 2020-12-01 | B17: 10245 | C17: 1223 | D17: 21370 | E17: LE PRIEURE QUIMPER | F17: FAC. F20112185 DU 21/11/2020 PLATEAUX REPAS POINT SUR LES DOSSIERS EN COURS MME ASSIH MM. GRAMOULE ET GUYADER | G17: 53.4 | H17: 58.74 | I17: 020 | J17: 6257 | K17: 115
A18: 2020-12-08 | B18: 10659 | C18: 1257 | D18: 27630 | E18: LES JARDINS DU PRIEURE | F18: FAC. F2012307-4357 DU 03/12/2020 PLATEAUX REPAS REUNION SUR LE RECRUTEMENT | G18: 53.4 | H18: 58.74 | I18: 020 | J18: 6257 | K18: 115
A19: 2020-12-08 | B19: 10660 | C19: 1257 | D19: 27630 | E19: LES JARDINS DU PRIEURE | F19: FAC. F20120116-4270 DU 01/12/2020 PLATEAUX REPAS REUNION POINT SUR LES DOSSIERS EN COURS | G19: 48.95 | H19: 58.74 | I19: 020 | J19: 6257 | K19: 115
A20: 2020-12-22 | B20: 11238 | C20: 1334 | D20: 24958 | E20: RESTAURANT LE GLOBE | F20: FAC. FACTURE DU 14/12/2020 DEJEUNER DE TRAVAIL POINT BIMENSUEL SUR LES PROJETS EN COURS MME ASSIH M. GRAMOULLE | G20: 46.92 | H20: 49.5 | I20: 020 | J20: 6257 | K20: 115
A21: 2020-12-22 | B21: 11239 | C21: 1334 | D21: 35304 | E21: ALOHA FRESH BOWL | F21: FAC. 1 DU 17/12/2020 DEJEUNERS DE TRAVAIL POINT URBANISME ET CABINET | G21: 95.45 | H21: 105 | I21: 020 | J21: 6257 | K21: 115
A22: COMPTE 6532 Frais de missions des élus
A23: Date M+ | B23: N° M+ | C23: N° BD | D23: N°Tiers | E23: Tiers | F23: Libellé écriture | G23: Montant HT | H23: Montant TTC | I23: Fonction | J23: Nature | K23: Service
A24: 2020-12-29 | B24: 11480 | C24: 1358 | D24: 30762 | E24: RAILLARD ET FILS | F24: FAC. F031026081 DU 11/12/2020 DEPLACEMENT A PARIS MMES ASSIH ET QUERE REUNION MINISTERE DES SPORTS LE 15/12/2020 | G24: 218 | H24: 218.8 | I24: 020 | J24: 6532 | K24: 115
A25: COMPTE 6535 Formation des élus
A26: Date M+ | B26: N° M+ | C26: N° BD | D26: N°Tiers | E26: Tiers | F26: Libellé écriture | G26: Montant HT | H26: Montant TTC | I26: Fonction | J26: Nature | K26: Service
A27: 2020-09-22 | B27: 7392 | C27: 907 | D27: 28891 | E27: OXALIS SCOP SA | F27: FAC. 20103033 DU 02/09/2020 FORMATION DE 2 JOURNEES DE L'EQUIPE MUNICIPALE LES 28 ET 29 AOUT | G27: 4300 | H27: 5160 | I27: 020 | J27: 6535 | K27: 115

Sheet 2021_115_VQ (hidden)
A1: EXERCICE 2021
A2: COMPTE 6257 Réceptions
A3: Date M+ | B3: N° M+ | C3: N° BD | D3: N°Tiers | E3: Tiers | F3: Libellé écriture | G3: Montant HT | H3: Montant TTC | I3: Fonction | J3: Nature | K3: Service
A4: 2021-01-12 | B4: 125 | C4: 18 | D4: 27630 | E4: LES JARDINS DU PRIEURE | F4: FAC. F20122804-4635 DU 28/12/2 020 PLATEAUX REPAS MME ASSIH ET M.GUYADER POINT CABINET | G4: 40.34 | H4: 44.37 | I4: 020 | J4: 6257 | K4: 115
A5: 2021-01-26 | B5: 300 | C5: 56 | D5: 27630 | E5: LES JARDINS DU PRIEURE | F5: FAC. F21012015-5110 DU 20/01/2021 PLATEAUX REPAS P OINT SUR LES MAIRIES DE QUARTIER | G5: 136.02 | H5: 149.62 | I5: 020 | J5: 6257 | K5: 115
A6: 2021-01-26 | B6: 301 | C6: 56 | D6: 27630 | E6: LES JARDINS DU PRIEURE | F6: FAC. F21011215-4939 DU 12/01/2021 PLATEAUX REPAS DEHEUNER DE TRAVAIL PRISE DE CONTACT NOUVEAU DGS | G6: 79.08 | H6: 86.99 | I6: 020 | J6: 6257 | K6: 115
A7: 2021-02-16 | B7: 1072 | C7: 155 | D7: 34604 | E7: L'ATELIER DES GOURMETS | F7: FAC. F000287 DU 01/02/2021 PLATEAUX REPAS REUNION VALIDA TION ORXDRE DU JOUR BUREAU MUNICIPAL | G7: 130.88 | H7: 143.97 | I7: 020 | J7: 6257 | K7: 115
A8: 2021-02-16 | B8: 1075 | C8: 155 | D8: 34604 | E8: L'ATELIER DES GOURMETS | F8: FAC. F000295 DU 09/02/2021 PLATEAUX REPAS REUNION POINT CABINET LE 08/02/2021 | G8: 49.08 | H8: 53.99 | I8: 020 | J8: 6257 | K8: 115
A9: 2021-02-16 | B9: 1076 | C9: 155 | D9: 34604 | E9: L'ATELIER DES GOURMETS | F9: FAC. F000294 DU 09/02/2021 DEJEUNER DE TRAVAIL MANAGER D U CENTRE VILLE LE 09/02/2021 | G9: 98.16 | H9: 107.98 | I9: 020 | J9: 6257 | K9: 115
A10: 2021-02-16 | B10: 1080 | C10: 155 | D10: 35304 | E10: ALOHA FRESH BOWL | F10: FAC. 2 DU 16/02/2021 PLATEAUX REPAS DIVERSES REUNI ONS | G10: 81.82 | H10: 90 | I10: 020 | J10: 6257 | K10: 115
A11: 2021-03-02 | B11: 1478 | C11: 209 | D11: 27630 | E11: LES JARDINS DU PRIEURE | F11: FAC. 021 DU 25/02/2021 PLATEAUX REPAS REUNION PASSAG E AUX 1607 HEURES | G11: 47.4 | H11: 52.14 | I11: 020 | J11: 6257 | K11: 115
A12: 2021-03-09 | B12: 1816 | C12: 239 | D12: 27630 | E12: LES JARDINS DU PRIEURE | F12: FAC. F20112185-4231 DU 21/11/2020 PLATEAUX REPAS REU NION POINT CABINET LE 16/11/2020 | G12: 53.4 | H12: 58.74 | I12: 020 | J12: 6257 | K12: 115
A13: 2021-03-16 | B13: 2100 | C13: 273 | D13: 25832 | E13: RAVALEC TRAITEUR | F13: FAC. FC2-2103-000018 DU 08/03/2021 PLATEAUX REPAS POINT CABINET LE 08/03/2021 | G13: 49.2 | H13: 54.12 | I13: 020 | J13: 6257 | K13: 115
A14: 2021-03-16 | B14: 2101 | C14: 273 | D14: 25832 | E14: RAVALEC TRAITEUR | F14: FAC. FC2-2102-000098 DU 22/02/2021 PLATEAUX REPAS P OINT CABINET LE 22/02/2021 | G14: 42.6 | H14: 46.86 | I14: 020 | J14: 6257 | K14: 115
A15: 2021-03-30 | B15: 2605 | C15: 339 | D15: 27630 | E15: LES JARDINS DU PRIEURE | F15: FAC. C9FF84258942539 DU 29/03/2021 PLATEAUX REPAS P OINT CABINET MME ASSIH ET MM. GUYADER ET GRAMOULLE | G15: 53.4 | H15: 58.74 | I15: 020 | J15: 6257 | K15: 115
A16: 2021-04-20 | B16: 3215 | C16: 415 | D16: 34604 | E16: L'ATELIER DES GOURMETS | F16: FAC. F000354 DU 12/04/2021 4 PLATEAUX REPAS REUNION DOSS IER LES HALLES LE 25/03/2021 | G16: 65.44 | H16: 71.98 | I16: 020 | J16: 6257 | K16: 115
A17: 2021-04-20 | B17: 3216 | C17: 415 | D17: 34604 | E17: L'ATELIER DES GOURMETS | F17: FAC. F000351 DU 12/04/2021 13 PLATEAUX REPAS REUNION TOU R DE FRANCE ELUS / POLICE LE 30/03/2021 | G17: 212.68 | H17: 233.95 | I17: 020 | J17: 6257 | K17: 115
A18: 2021-04-27 | B18: 3506 | C18: 459 | D18: 34604 | E18: L'ATELIER DES GOURMETS | F18: FAC. F000364 DU 19/04/2021 PLATEAUX REPAS POINT CABINET MME ASSIH ET MM. GRAMOULLE ET GUYADER | G18: 49.08 | H18: 53.99 | I18: 020 | J18: 6257 | K18: 115
A19: 2021-05-04 | B19: 3849 | C19: 484 | D19: 3354 | E19: KEMPER GASTRONOMIE | F19: FAC. F21012311 DU 23/01/2021 DEJ 21/01/21-CONSEIL MUNI+COM I ASSIH-R GUYADER- E MARTIN - K COVEMAEKER | G19: 54.56 | H19: 60.02 | I19: 020 | J19: 6257 | K19: 115
A20: 2021-06-15 | B20: 5148 | C20: 670 | D20: 31791 | E20: LA PEPINIERE | F20: FAC. Facture 1 DU 04/06/2021 DEJEUNER 2 PERSONNES 04/06/21 I ASSIH + D LESVENAN- DOSSIERS URBANISMES | G20: 32.09 | H20: 35.3 | I20: 020 | J20: 6257 | K20: 115
A21: 2021-06-15 | B21: 5150 | C21: 670 | D21: 35304 | E21: ALOHA FRESH BOWL | F21: FAC. 21/4 DU 21/04/2021 PLATEAUX REPAS - I ASSIH PREP DIVERSES REUNIONS-23/03 + 26/03+01/04 + 09/04/2021 | G21: 136.36 | H21: 150 | I21: 020 | J21: 6257 | K21: 115
A22: 2021-06-22 | B22: 5320 | C22: 702 | D22: 27630 | E22: LES JARDINS DU PRIEURE | F22: FAC. BD7E07965 DU 10/06/2021 PLATEAUX REPAS POINT CABINET MME ASSIH ET MM. GRAMOULLE ET GUYADER LE 03/06/2021 | G22: 53.4 | H22: 58.74 | I22: 020 | J22: 6257 | K22: 115
A23: 2021-06-22 | B23: 5321 | C23: 702 | D23: 27630 | E23: LES JARDINS DU PRIEURE | F23: FAC. F21062218-7543 DU 22/06/2021 PLATEAUX REPAS REUNION DE DIRECTION | G23: 71.2 | H23: 78.32 | I23: 020 | J23: 6257 | K23: 115
A24: 2021-06-22 | B24: 5322 | C24: 702 | D24: 26289 | E24: LE XXI | F24: FAC. 1 DU 14/06/2021 DEJEUNER DE TRAVAIL POINT SUR LES DOSSIERS EN COURS | G24: 42.09 | H24: 46.3 | I24: 020 | J24: 6257 | K24: 115
A25: 2021-07-06 | B25: 5774 | C25: 761 | D25: 27630 | E25: LES JARDINS DU PRIEURE | F25: FAC. D9B72239480 DU 25/06/2021 2 PLATEAUX REPAS POINT DELEGA TION MMES ASSIH ET DURRWELL | G25: 35.6 | H25: 39.16 | I25: 020 | J25: 6257 | K25: 115
A26: 2021-07-20 | B26: 6504 | C26: 825 | D26: 27630 | E26: LES JARDINS DU PRIEURE | F26: FAC. F21071527-7794 DU 15/07/2021 4 PLATEAUX REP AS POINT AVEC L'ARS LE 06/07/21 | G26: 90.8 | H26: 99.88 | I26: 020 | J26: 6257 | K26: 115
A27: 2021-08-03 | B27: 6883 | C27: 878 | D27: 3354 | E27: KEMPER GASTRONOMIE | F27: FAC. F21011501 DU 15/01/2021 12 PLATEAUX REPAS REUNIONS P OINT QUIMPER GASTRONOMIE ET PROJET LOCATION THEATRE MJ | G27: 163.68 | H27: 180.05 | I27: 020 | J27: 6257 | K27: 115
A28: 2021-08-03 | B28: 6884 | C28: 878 | D28: 3354 | E28: KEMPER GASTRONOMIE | F28: FAC. F21031903 DU 19/03/2021 3 PLATEAUX REPAS REUNION AVEC LE PRESIDENT DE DE LA CHAMBRE DES METIERS | G28: 45 | H28: 49.5 | I28: 020 | J28: 6257 | K28: 115
A29: 2021-08-03 | B29: 6885 | C29: 878 | D29: 3354 | E29: KEMPER GASTRONOMIE | F29: FAC. F21031103 DU 11/03/2021 4 PLATEAUX REPAS REUNION DOSS IER LES HALLES LE 11/03/2021 | G29: 60 | H29: 66 | I29: 020 | J29: 6257 | K29: 115
A30: 2021-09-14 | B30: 8208 | C30: 1040 | D30: 3354 | E30: KEMPER GASTRONOMIE | F30: FAC. F21083008 bis DU 30/08/2021 PLATEAUX REPAS R EUNION PROJETS CULTURELS | G30: 63.64 | H30: 70 | I30: 020 | J30: 6257 | K30: 115
A31: 2021-09-21 | B31: 8471 | C31: 1070 | D31: 27311 | E31: COPPER J | F31: FAC. 25062021 DU 25/06/2021 DEJEUNER DE TRAVAIL MME ASSIH M.LESVENAN POINT URBANISME | G31: 40.91 | H31: 45 | I31: 020 | J31: 6257 | K31: 115
A32: 2021-09-28 | B32: 8818 | C32: 1116 | D32: TERR910223 | E32: EURL COTE BISTROT | F32: FAC. FC-21-2309 DU 23/09/2021 DEJEUNER POUR LES 50 ANS DE Q UIPER-REMSHEID | G32: 312.04 | H32: 353.9 | I32: 020 | J32: 6257 | K32: 115
A33: 2021-10-12 | B33: 9480 | C33: 1177 | D33: 25832 | E33: RAVALEC TRAITEUR | F33: FAC. FC2-2109-000100 DU 27/09/ REPAS 27/09/21-ASSIH I ANDRO POINT DELEGATION PILOTAGE POLITIQUES PUBLIQUES- | G33: 28.4 | H33: 31.24 | I33: 020 | J33: 6257 | K33: 115
A34: 2021-10-19 | B34: 9715 | C34: 1215 | D34: 27630 | E34: LES JARDINS DU PRIEURE | F34: FAC. CBD8C8215044 DU 13/10/2021- I ASSIH-GRAMOULLE -GUYADER POINT CABINET ADMINISTRATION GENERALE | G34: 51.3 | H34: 56.43 | I34: 020 | J34: 6257 | K34: 115
A35: 2021-10-26 | B35: 10148 | C35: 1250 | D35: 3354 | E35: KEMPER GASTRONOMIE | F35: FAC. F21091306T DU 13/09/2021- DEJ W SUR LES 1607 HEURES I A SSIH-U CREQUER - C COROLLER - R GUYADER | G35: 60 | H35: 66 | I35: 020 | J35: 6257 | K35: 115
A36: 2021-11-16 | B36: 10709 | C36: 1306 | D36: 27630 | E36: LES JARDINS DU PRIEURE | F36: FAC. F21110902-8621 DU 09/11/2021-DEJEUNER I ASSIH-GRAMOULLE R GUYADER - POINT CABINET ADMINISTRATIO NGENERALE | G36: 53.4 | H36: 58.74 | I36: 020 | J36: 6257 | K36: 115
A37: 2021-11-16 | B37: 10710 | C37: 1306 | D37: 27630 | E37: LES JARDINS DU PRIEURE | F37: FAC. B2673104 DU 09/11/2021 - DEJEUNER PREFET / MAIRE 6 PERS ASSIH-LE PREFET- E MARTIN- R GUYADER- DIRECT PREF + CABINET | G37: 106.8 | H37: 117.48 | I37: 020 | J37: 6257 | K37: 115
A38: 2021-11-16 | B38: 10711 | C38: 1306 | D38: 27630 | E38: LES JARDINS DU PRIEURE | F38: FAC. F21110910-8629 DU 09/11/2021- DEJEUNER PRESENTATION ESQ UISSES ROZMARIA I ASSIH + D LESVENAN + POINT CULTURE | G38: 65 | H38: 71.5 | I38: 020 | J38: 6257 | K38: 115
A39: 2021-11-23 | B39: 11225 | C39: 1355 | D39: RA781 | E39: TREVETTEN PATRICE | F39: REGUL REGIE ADMIN GENERALE DEJEUNERS DE TRAVAIL | G39: 211.38 | H39: 211.38 | I39: 020 | J39: 6257 | K39: 115
A40: 2021-11-23 | B40: 11255 | C40: 1361 | D40: 27630 | E40: LES JARDINS DU PRIEURE | F40: FAC. F21020516-5366 DU 05/02/2021- RENCONTRE PRE CONSEIL MUN ICIPAL - I ASSIH + K GHACHEM | G40: 42.73 | H40: 47 | I40: 020 | J40: 6257 | K40: 115
A41: 2021-12-28 | B41: 12864 | C41: 1521 | D41: 27630 | E41: LES JARDINS DU PRIEURE | F41: FAC.F21120918-8927 DU 09/12/2021-DEJEUNER AFFAIRES GENERALES I ASSIH - G GRAMOULE - R GUYADER | G41: 53.4 | H41: 58.74 | I41: 020 | J41: 6257 | K41: 115
A42: 2021-12-28 | B42: 12865 | C42: 1521 | D42: 27630 | E42: LES JARDINS DU PRIEURE | F42: F21120917-8926 DU 09/12/21-VALIDATION ODJ BUREAU MUNICIPAL D U 09/12/2021 | G42: 68.1 | H42: 74.91 | I42: 020 | J42: 6257 | K42: 115
A43: 2022-01-07 | B43: 13491 | C43: 1561 | D43: 27630 | E43: LES JARDINS DU PRIEURE | F43: FAC. F22010602-9134 DU 06/01/2022 -POINT DELEGATION I ASSIH - ROMAIN GUYADER - M STERVINOU | G43: 53.4 | H43: 58.74 | I43: 020 | J43: 6257 | K43: 115
A44: COMPTE 6532 Frais de missions des élus
A45: Date M+ | B45: N° M+ | C45: N° BD | D45: N°Tiers | E45: Tiers | F45: Libellé écriture | G45: Montant HT | H45: Montant TTC | I45: Fonction | J45: Nature | K45: Service
A46: 2021-09-21 | B46: 8474 | C46: 1070 | D46: 30762 | E46: RAILLARD ET FILS | F46: FAC. F031029127 DU 16/08/2021 DEPLACEMENT DES ELUS A REIMSHEID | G46: 1890.41 | H46: 1890.41 | I46: 020 | J46: 6532 | K46: 115
A47: 2021-12-21 | B47: 12582 | C47: 1496 | D47: 30762 | E47: RAILLARD ET FILS | F47: FAC. F031030874 DU 15/11/2021 DEPLACEMENT 103E CONGRES MAIRES MME I. ASSIH - PARIS DU 16 AU 18/11/2021 | G47: 613.32 | H47: 614.72 | I47: 020 | J47: 6532 | K47: 115
A48: 2022-01-07 | B48: 13493 | C48: 1561 | D48: 4100 | E48: AMF | F48: FAC.CG212126 DU 03/12/21 PARTICIPATION 103E CONGRES MAIRES - PARIS DU 16 AU 18/11/2021 | G48: 95 | H48: 95 | I48: 020 | J48: 6532 | K48: 115
A49: COMPTE 6535 Formation des élus
A50: Date M+ | B50: N° M+ | C50: N° BD | D50: N°Tiers | E50: Tiers | F50: Libellé écriture | G50: Montant HT | H50: Montant TTC | I50: Fonction | J50: Nature | K50: Service
A51: 2021-03-02 | B51: 1476 | C51: 209 | D51: 6171 | E51: UNIVERSITE BRETAGNE OCCIDENTALE | F51: FAC. 210060377 DU 16/02/2021 FORMATION MME ASSIH PARLER DEVANT UNE CAMERA | G51: 600 | H51: 600 | I51: 020 | J51: 6535 | K51: 115

Sheet 2022_115_VQ (hidden)
A1: EXERCICE 2022
A2: COMPTE 6257 Réceptions
A3: Date M+ | B3: N° M+ | C3: N° BD | D3: N°Tiers | E3: Tiers | F3: Libellé écriture | G3: Montant HT | H3: Montant TTC | I3: Fonction | J3: Nature | K3: Service
A4: 2022-03-01 | B4: 1635 | C4: 233 | D4: 17157 | E4: SUR LES QUAIS | F4: FAC 3 - DEJ POINT PROJETS VILLEDELEGUES MAJORITE VILLE I ASS IH - Y FORMENTIN MORY- MP JEAN JACQUES | G4: 55.27 | H4: 60.8 | I4: 020 | J4: 6257 | K4: 115
A5: 2022-05-03 | B5: 4043 | C5: 540 | D5: 35304 | E5: ALOHA FRESH BOWL | F5: FAC. 6 DU 16/03/2021- DEJEUNERS DE TRAVAIL MME LA MAIRE ENTR E 2 REUNIONS | G5: 272.74 | H5: 300.01 | I5: 020 | J5: 6257 | K5: 115
A6: 2022-06-21 | B6: 5871 | C6: 768 | D6: RA781 | E6: TREVETTEN PATRICE | F6: REGUL REGIE ADMIN GENERALE DEJEUNERS DE TRAVAIL MME ASSIH | G6: 275.52 | H6: 275.52 | I6: 020 | J6: 6257 | K6: 115
A7: 2022-06-28 | B7: 6045 | C7: 797 | D7: 14545 | E7: LA MIE CALINE | F7: FAC. 11032022 DU 11/03/2022 - DEJEUNER DE TRAVAIL LE 28/02/2 022 | G7: 8.33 | H7: 9.05 | I7: 020 | J7: 6257 | K7: 115
A8: 2022-06-28 | B8: 6046 | C8: 797 | D8: 14545 | E8: LA MIE CALINE | F8: FAC. 28022022 DU 28/02/2022 - DEJEUNER DE TRAVAIL LE 11/03/2 022 | G8: 8.33 | H8: 9.05 | I8: 020 | J8: 6257 | K8: 115
A9: 2022-07-26 | B9: 6993 | C9: 917 | D9: 27630 | E9: LES JARDINS DU PRIEURE | F9: FAC. F22071304 DU 13/07/2022 DEJEUNER DE TRAVAIL MME ASSIH ET M. R. GUYADER LE 13/6/2022 | G9: 37.6 | H9: 41.36 | I9: 020 | J9: 6257 | K9: 115
A10: 2022-08-09 | B10: 7771 | C10: 986 | D10: 27630 | E10: LES JARDINS DU PRIEURE | F10: FAC. 29754 0321067864 DU 04/08/2022- DEJ CABINET -I ASSIH G GRAMOULLE / R GUYADER | G10: 71.1 | H10: 78.21 | I10: 020 | J10: 6257 | K10: 115
A11: 2022-10-18 | B11: 10431 | C11: 1309 | D11: 27630 | E11: LES JARDINS DU PRIEURE | F11: FAC. F22101096 DU 10/10/2022- DEJ POINT DOSSIERS EN COURS I ASSIH-L VIGNON-P TROGLIA-P BROUDEUR-R GUYADER | G11: 90.5 | H11: 99.55 | I11: 020 | J11: 6257 | K11: 115
A12: 2022-10-18 | B12: 10433 | C12: 1309 | D12: 27630 | E12: LES JARDINS DU PRIEURE | F12: F221010100 DU 10/10/2022- DEJ POINT DOSSIERS EN COURS I ASSI H- R GUYADER | G12: 37.6 | H12: 41.36 | I12: 020 | J12: 6257 | K12: 115
A13: 2022-10-18 | B13: 10432 | C13: 1309 | D13: 27630 | E13: LES JARDINS DU PRIEURE | F13: F22101097 DU 10/10/22- DEJEUNER POINT ELUS QUARTIER- I ASSIH JASSERONDG GRAMOULLE-C LE BRUN-M PHILIPPE-JE BOULEY-A AUROUX | G13: 131.6 | H13: 144.76 | I13: 020 | J13: 6257 | K13: 115
A14: 2022-10-18 | B14: 10434 | C14: 1309 | D14: 32236 | E14: MAISON JAÏN | F14: FC21-2209-000002 DU 22/09/2022- RENCONTRE I ASSIH ET AGENTS MSP PENHARS-22/09/2022 | G14: 63.98 | H14: 67.5 | I14: 020 | J14: 6257 | K14: 115
A15: 2022-10-18 | B15: 10435 | C15: 1309 | D15: 32236 | E15: MAISON JAÏN | F15: FC21-2210-000001 DU 11/10/2022- CAFE/GATEAUX MAIRIE PENHARS I ASSIH ET AGENTS DE SECTEUR | G15: 154.8 | H15: 163.31 | I15: 020 | J15: 6257 | K15: 115
A16: 2022-10-18 | B16: 10436 | C16: 1309 | D16: 38341 | E16: GUNGOR | F16: FACTURE 05 10 2022 - DEJEUNER REUNION DE QUARTIER ERGUE-ARME L- I ASSIH+Y FORMENTIN-U CREQUER-D LESVENAN+ | G16: 213.61 | H16: 228.5 | I16: 020 | J16: 6257 | K16: 115
A17: 2022-10-31 | B17: 10850 | C17: 1359 | D17: RA781 | E17: TREVETTEN PATRICE | F17: REGUL REGIE D'AVANCES ADMINISTRATION GENERALE DU 31.10.2022 DEJEUNERS DE TRAVAIL I.ASSIH | G17: 158.18 | H17: 189.81 | I17: 020 | J17: 6257 | K17: 115
A18: 2022-11-22 | B18: 11580 | C18: 1436 | D18: 14545 | E18: LA MIE CALINE | F18: FAC. 31052022 DU 31/05/2022 REPAS 5 FORMULES EXTRA 33 - 31/0 5/2022 | G18: 36.22 | H18: 39 | I18: 020 | J18: 6257 | K18: 115
A19: 2022-11-22 | B19: 11581 | C19: 1436 | D19: 27630 | E19: LES JARDINS DU PRIEURE | F19: FAC. F22110805 DU 08/11/2022 DEJEUNERS DE TRAVAIL - 2022 | G19: 75.2 | H19: 82.72 | I19: 020 | J19: 6257 | K19: 115
A20: 2022-11-22 | B20: 11584 | C20: 1436 | D20: 27630 | E20: LES JARDINS DU PRIEURE | F20: FAC. F22110806 DU 08/11/2022 DEJEUNERS DE TRAVAIL - 2022 | G20: 56.4 | H20: 62.04 | I20: 020 | J20: 6257 | K20: 115
A21: 2022-11-22 | B21: 11585 | C21: 1436 | D21: 27630 | E21: LES JARDINS DU PRIEURE | F21: FAC. F22110807 DU 08/11/2022 REPAS 4 PLATEAUX REPAS 24/10/20 22 | G21: 75.2 | H21: 82.72 | I21: 020 | J21: 6257 | K21: 115
A22: 2022-12-08 | B22: 12349 | C22: 1527 | D22: TERR910223 | E22: EURL COTE BISTROT | F22: FAC. FC-22-0112 DU 01/12/2022 REPAS 5 PERSONNES | G22: 137.48 | H22: 152.8 | I22: 020 | J22: 6257 | K22: 115
A23: 2022-12-08 | B23: 12361 | C23: 1530 | D23: 27311 | E23: COPPER J | F23: FAC. 20052022 DU 20/05/2022 REPAS 10 COUVERTS RENOVATION THE ATRE MAX JACOB | G23: 191.03 | H23: 210.8 | I23: 020 | J23: 6257 | K23: 115
A24: 2022-12-15 | B24: 12725 | C24: 1568 | D24: 27311 | E24: COPPER J | F24: FAC. 22022 DU 28/11/2022 REPAS - 3 COUVERTS ECOLE DE BRODERI E | G24: 93.67 | H24: 105.7 | I24: 020 | J24: 6257 | K24: 115
A25: 2022-12-20 | B25: 13255 | C25: 1645 | D25: RA781 | E25: TREVETTEN PATRICE | F25: REGUL REGIE D'AVANCES ADMINISTRATION GENERALE DEJEUNERS DE TRAVAIL MAIRE | G25: 78.88 | H25: 78.88 | I25: 020 | J25: 6257 | K25: 115
A26: 2023-01-05 | B26: 13490 | C26: 1682 | D26: 27311 | E26: COPPER J | F26: FAC. 20102022 DU 20/10/2022 REPAS 7 COUVERTS - 20/10/2022 | G26: 137.18 | H26: 150.9 | I26: 020 | J26: 6257 | K26: 115
A27: 2023-01-05 | B27: 13494 | C27: 1682 | D27: 27630 | E27: LES JARDINS DU PRIEURE | F27: FAC. F22121985 DU 19/12/2022 PILOTAGE POLITIQUES PUBLIQUES D EJEUNERS DE TRAVAIL - 2022 | G27: 36.2 | H27: 39.82 | I27: 020 | J27: 6257 | K27: 115
A28: 2023-01-05 | B28: 13496 | C28: 1682 | D28: 27630 | E28: LES JARDINS DU PRIEURE | F28: FAC. F22121989 DU 14/11/2022 BUREAU MUNICIPAL DEJEUNERS DE T RAVAIL - 2022 | G28: 54.3 | H28: 59.73 | I28: 020 | J28: 6257 | K28: 115
A29: 2023-01-05 | B29: 13497 | C29: 1682 | D29: 27630 | E29: LES JARDINS DU PRIEURE | F29: FAC. F22122001 DU 20/12/2022 BUREAU MUNICIPAL DEJEUNERS DE T RAVAIL - 2022 | G29: 56.4 | H29: 62.04 | I29: 020 | J29: 6257 | K29: 115
A30: COMPTE 6532 Frais de missions des élus
A31: Date M+ | B31: N° M+ | C31: N° BD | D31: N°Tiers | E31: Tiers | F31: Libellé écriture | G31: Montant HT | H31: Montant TTC | I31: Fonction | J31: Nature | K31: Service
A32: 2022-12-08 | B32: 12365 | C32: 1531 | D32: 30762 | E32: RAILLARD ET FILS | F32: FAC. F031038845 DU 10/11/2022 DEPLACEMENT PARIS DU 22/11 au 24/11/2022 ASSIH | G32: 883.38 | H32: 884.78 | I32: 020 | J32: 6532 | K32: 115
A33: 2022-12-08 | B33: 12366 | C33: 1531 | D33: 30762 | E33: RAILLARD ET FILS | F33: FAC. F031039155 DU 23/11/2022 DEPLACEMENT PARIS ASSIH 1122-0 0481 - DEPLACEMENT DES ELUS 2022 DU 28/06/2022 | G33: 75 | H33: 75.2 | I33: 020 | J33: 6532 | K33: 115
A34: 2022-12-08 | B34: 12365 | C34: 1531 | D34: 30762 | E34: RAILLARD ET FILS | F34: AVOIR A031009332 DU 23/11/2022 DEPLACEMENT PARIS ASSIH 1122- 00481 - DEPLACEMENT DES ELUS 2022 DU 28/06/2022 | G34: -80 | H34: -80 | I34: 020 | J34: 6532 | K34: 115
A35: 2023-01-05 | B35: 13498 | C35: 1682 | D35: 4100 | E35: AMF | F35: FAC. CG222172 DU 08/12/2022 AMF - MAIRES DE FRANCE 2022 PART ICIPATION 104EME CONGRES | G35: 570 | H35: 570 | I35: 020 | J35: 6532 | K35: 115
A36: COMPTE 6535 Formation des élus
A37: Date M+ | B37: N° M+ | C37: N° BD | D37: N°Tiers | E37: Tiers | F37: Libellé écriture | G37: Montant HT | H37: Montant TTC | I37: Fonction | J37: Nature | K37: Service
A38: 2022-09-06 | B38: 8679 | C38: 1095 | D38: 37965 | E38: INSTITUT FORMATION ELUS TERRITOR | F38: FAC. 22074 DU 09/08/2022 FORMATION MME ASSIH - 12/07/2022 MEDIA TRAINING UNE DES CLES DE LA REUSSITE | G38: 3395.31 | H38: 3395.31 | I38: 020 | J38: 6535 | K38: 115

Sheet 2023_115_VQ (hidden)
A1: EXERCICE 2023
A2: COMPTE 6257 Réceptions
A3: Date M+ | B3: N° M+ | C3: N° BD | D3: N°Tiers | E3: Tiers | F3: Libellé écriture | G3: Montant HT | H3: Montant TTC | I3: Fonction | J3: Nature | K3: Service
A4: 2022-01-10 | B4: 106 | C4: 9 | D4: 19589 | E4: AMZER ZO | F4: 27/09/2022 - RENCONTRE DES QUARTIERS - KERFEUNTEUN REPAS | G4: 160.94 | H4: 178.7 | I4: 020 | J4: 6257 | K4: 115
A5: 2023-01-24 | B5: 323 | C5: 62 | D5: 38948 | E5: MAKEWAN | F5: FAC. 34 DU 27/09/2022 RENCONTRES DES QUARTIERS KERFEUNTEUN | G5: 160.94 | H5: 178.7 | I5: 020 | J5: 6257 | K5: 115
A6: 2023-02-07 | B6: 666 | C6: 112 | D6: 27630 | E6: LES JARDINS DU PRIEURE | F6: FAC. F23011604 DU 16/01/2023 ECHANGE RUE HAUTE ET SECTEUR CH ATEAUBRIAND | G6: 122.8 | H6: 136.08 | I6: 020 | J6: 6257 | K6: 115
A7: 2023-02-21 | B7: 1107 | C7: 171 | D7: 14545 | E7: LA MIE CALINE | F7: FAC. 11032022 DU 03/11/2022 DEJEUNER I. ASSIH 11/03/2022 | G7: 8.33 | H7: 9.05 | I7: 020 | J7: 6257 | K7: 115
A8: 2023-02-21 | B8: 1110 | C8: 171 | D8: 27630 | E8: LES JARDINS DU PRIEURE | F8: FAC. F230216120 DU 20/01/2023 REUNION DRAC DU 20.01.2023 | G8: 160.4 | H8: 177.44 | I8: 020 | J8: 6257 | K8: 115
A9: 2023-02-28 | B9: 1450 | C9: 226 | D9: 37020 | E9: LE VIN DANS LES VOILES | F9: 2022-10-20 DEPLACEMENT MAIRE + ELUS VISITES DES QUARTIERS ET REUNION PUBLIQUE MEDIATHEQUE | G9: 181.83 | H9: 204.4 | I9: 020 | J9: 6257 | K9: 115
A10: 2023-03-14 | B10: 2083 | C10: 295 | D10: 27630 | E10: LES JARDINS DU PRIEURE | F10: FAC. F23031314 DU 13/03/2023 DEJEUNER DE TRAVAIL DISCUSSION SITE ROZMARIA - 6 PERSONNES | G10: 122.8 | H10: 136.08 | I10: 020 | J10: 6257 | K10: 115
A11: 2023-03-14 | B11: 2084 | C11: 295 | D11: 27630 | E11: LES JARDINS DU PRIEURE | F11: FAC. F23031312 DU 13/03/2023 DEJEUNER DE TRAVAIL ARBITRAGE B UDGETAIRE - 5 PERSONNES | G11: 104 | H11: 115.4 | I11: 020 | J11: 6257 | K11: 115
A12: 2023-04-18 | B12: 3139 | C12: 473 | D12: RA781 | E12: TREVETTEN PATRICE | F12: REGUL REGIE D'AVANCES ADMINISTRATION GENERALE DEJEUNERS TRAV AIL MME ASSIH | G12: 169.22 | H12: 169.22 | I12: 020 | J12: 6257 | K12: 115
A13: 2023-04-24 | B13: 3385 | C13: 499 | D13: 27630 | E13: LES JARDINS DU PRIEURE | F13: FAC. F23041702 DU 17/04/2023 DEJEUNER DE TRAVAIL DU 02/03/20 VALIDATION ORDRE DU JOUR BUREAU MUNICIPAL | G13: 66.4 | H13: 74.04 | I13: 020 | J13: 6257 | K13: 115
A14: 2023-04-24 | B14: 3386 | C14: 499 | D14: 27630 | E14: LES JARDINS DU PRIEURE | F14: FAC. F23041705 DU 17/04/2023 REUNION DE DIRECTION VQ ASSIH + GUYADER + MENUT | G14: 54.3 | H14: 59.73 | I14: 020 | J14: 6257 | K14: 115
A15: 2023-04-24 | B15: 3389 | C15: 499 | D15: 27630 | E15: LES JARDINS DU PRIEURE | F15: FAC. F23041723 DU 17/04/2023 DEJEUNER DE TRAVAIL LES SOLIDAR ITES & LE HANDICAP | G15: 60.4 | H15: 67.44 | I15: 020 | J15: 6257 | K15: 115
A16: 2023-04-24 | B16: 3387 | C16: 499 | D16: 27630 | E16: LES JARDINS DU PRIEURE | F16: FAC. F23041707 DU 17/04/2023 MAIRE + DIRECTEUR CHIC PREPARAT ION CONSEIL DE SURVEILLANCE + UHC | G16: 57.4 | H16: 64.14 | I16: 020 | J16: 6257 | K16: 115
A17: 2023-05-30 | B17: 4586 | C17: 643 | D17: 27630 | E17: LES JARDINS DU PRIEURE | F17: FAC. F23051910 DU 19/05/2023 DEJEUNER DE TRAVAIL ECHANGE ENT RE ELUS SUR L'ACTUALITE | G17: 66.4 | H17: 74.04 | I17: 020 | J17: 6257 | K17: 115
A18: 2023-05-30 | B18: 4587 | C18: 643 | D18: 27630 | E18: LES JARDINS DU PRIEURE | F18: FAC. F23051907 DU 19/05/2023 DEJEUNER DE TRAVAIL ETUDE DES D OSSIERS EN COURS | G18: 66.4 | H18: 74.04 | I18: 020 | J18: 6257 | K18: 115
A19: 2023-05-30 | B19: 4588 | C19: 643 | D19: 3354 | E19: KEMPER GASTRONOMIE | F19: FAC. F23040301 DU 03/04/2023 2 PLATEAUX REPAS RECEPTION DU 0 3/03/2023 LES MOMENTS GOURMANDS | G19: 44 | H19: 48.4 | I19: 020 | J19: 6257 | K19: 115
